Workbook

Sheet Seznam
A1: Seznam hráčů OBTM Frýdek-Místek 2016-2017
A3: č.h. | B3: Jméno | C3: oddílúklub | D3: nar.
A4: 1 | B4: Jančák Richard | C4: Brušperk | D4: 2006
A5: 2 | B5: Blahuta Petr | C5: SK Frýdlant | D5: 2006
A6: 3 | B6: Muroň Ondřej | C6: TTC Frýdlant | D6: 2004
A7: 4 | B7: Kozel Ladislav | C7: TTC Frýdlant | D7: 2004
A8: 5 | B8: Janečka Martin | C8: Brušperk | D8: 2002
A9: 6 | B9: Rybák Tomáš | C9: SK Frýdlant | D9: 2006
A10: 7 | B10: Pařil Ondřej | C10: Kopřivnice | D10: 2003
A11: 8 | B11: Kociánová Natálie | C11: TTC Frýdlant | D11: 2009
A12: 9 | B12: Šlachta Prokop Antonín | C12: Frýdek - Místek | D12: 2006
A13: 10 | B13: Kuchař Andrej | C13: CDU Ostrava | D13: 2004
A14: 11 | B14: Ščerbová Barbora | C14: SK Frýdlant | D14: 2005
A15: 12 | B15: Gavendová Andrea | C15: CDU Ostrava | D15: 2006
A16: 13 | B16: Neuwirth Jaroslav | C16: Brušperk | D16: 2002
A17: 14 | B17: Káňa Tomáš | C17: SK Frýdlant | D17: 2007
A18: 15 | B18: Rozkydalová Eliška | C18: Frýdlant | D18: 2002
A19: 16 | B19: Lasota Laurent | C19: Lištná | D19: 2001
A20: 17 | B20: Michnová Marika | C20: SK Frýdlant | D20: 2008
A21: 18 | B21: Kubala Patrik | C21: SK Frýdlant | D21: 2001
A22: 19 | B22: Přikryl Václav | C22: TTC Frýdlant | D22: 2005
A23: 20 | B23: Mrowetz Bruno | C23: Brušperk | D23: 2004
A24: 21 | B24: Dudková Jana | C24: TTC Frýdlant | D24: 2007
A25: 22 | B25: Byrtus David | C25: Český Těšín | D25: 2004
A26: 23 | B26: Voneš Otmar | C26: Frýdlant | D26: 2006
A27: 24 | B27: Břenek Jiří | C27: Karviná | D27: 2009
A28: 25 | B28: Smetana Jan | C28: Třinec | D28: 2008
A29: 26 | B29: Malyjurek David | C29: Mosty u Jablunkova | D29: 2004
A30: 27 | B30: Hýl Jakub | C30: Brušperk | D30: 2006
A31: 28 | B31: Domenyová Klára | C31: Český Těšín | D31: 2003
A32: 29 | B32: Karásek Kryštof | C32: TTC Frýdlant | D32: 2005
A33: 30 | B33: Olejník Oliver | C33: TTC F-M | D33: 2011
A34: 31 | B34: Strašák Filip | C34: Třinec | D34: 2007
A35: 32 | B35: Szotkowski Jan | C35: Dolní Lomná | D35: 2003
A36: 33 | B36: Lichna Matěj | C36: Havířov | D36: 2006
A37: 34 | B37: Kufa Radek | C37: Jablunkov | D37: 2002
A38: 35 | B38: Moravec Václav | C38: Paskov | D38: 2008
A39: 36 | B39: Slaný Vojtěch | C39: Paskov | D39: 2005
A40: 37 | B40: Huta Lukáš | C40: Třinec | D40: 2006
A41: 38 | B41: Zvrtek Jan | C41: Návsí | D41: 2004
A42: 39 | B42: Walek Adrian | C42: Návsí | D42: 2005
A43: 40 | B43: Pohanka Marek | C43: Paskov | D43: 2001
A44: 41 | B44: Břenková Kristýna | C44: Karviná | D44: 2009
A45: 42 | B45: Smolka Daniel | C45: Kozlovice | D45: 2005
A46: 43 | B46: Stávek Jan | C46: Malenovice | D46: 2003
A47: 44 | B47: Zvrtková Magdaléna | C47: Návsí | D47: 2002
A48: 45 | B48: Smetana Dominik | C48: Ropice | D48: 2003
A49: 46 | B49: Kotas Jakub | C49: Třinec | D49: 2008
A50: 47 | B50: Vorbis Michal | C50: Paskov | D50: 2000
A51: 48 | B51: Michna Viktor | C51: Paskov | D51: 2004
A52: 49 | B52: Bonek Daniel | C52: TJ Sokol Nýdek | D52: 2004
A53: 50 | B53: Kisiala David | C53: Český Těšín | D53: 2006
A54: 51 | B54: Svoboda Vojtěch | C54: TTC F-M | D54: 2006
A55: 52 | B55: Kunát Martin | C55: Paskov | D55: 2003
A56: 53 | B56: Pustka Adam | C56: Kozlovice | D56: 2008
A57: 54 | B57: Fedorčík André | C57: Frýdlant | D57: 2005
A58: 55 | B58: Ševeček Jan | C58: Brušperk | D58: 2005
A59: 56 | B59: Stodůlková Tereza | C59: SK Frýdlant | D59: 2008
A60: 57 | B60: Novák Petr | C60: TTC F-M | D60: 2006
A61: 58 | B61: Chudíková Nikol | C61: Komorní Lhotka | D61: 2007
A62: 59 | B62: Szotkowski Jan | C62: Třinec | D62: 2006
A63: 60 | B63: Pilch Štěpán | C63: Třinec | D63: 2007
A64: 61 | B64: Šefl Josef | C64: Brušperk | D64: 2006
A65: 62 | B65: Neuwirth Ondřej | C65: Brušperk | D65: 2006
A66: 63 | B66: Jendrůlek Adam | C66: Ropice | D66: 2003
A67: 64 | B67: Tabach René | C67: Kozlovice | D67: 2005
A68: 65 | B68: Stramová Eliška | C68: Frýdlant | D68: 2005
A69: 66 | B69: Kožušník Lukáš | C69: Frýdlant | D69: 2003
A70: 67 | B70: Kozelský Teodor | C70: Paskov | D70: 2005
A71: 68 | B71: Janota Tomáš | C71: Český Těšín | D71: 2005
A72: 69 | B72: Kresta Matěj | C72: Kozlovice | D72: 2005
A73: 70 | B73: Mitrenga Jan | C73: TJ Sokol Nýdek | D73: 2007
A74: 71 | B74: Lisztwán Jan | C74: Vendryně | D74: 2005
A75: 72 | B75: Kowalowski Lukáš | C75: Jablunkov | D75: 2003
A76: 73 | B76: Pščolka Michael | C76: Vendryně | D76: 2005
A77: 74 | B77: Somr Daniel | C77: Frýdlant | D77: 2007
A78: 75 | B78: Duda Lukáš | C78: Návsí | D78: 2001
A79: 76 | B79: Vantuch Richard | C79: Brušperk | D79: 2009
A80: 77 | B80: Vojta Ondřej | C80: Ropice | D80: 2003
A81: 78 | B81: Brozda David | C81: Ropice | D81: 2005
A82: 79 | B82: Červenka Jan | C82: Brušperk | D82: 2004
A83: 80 | B83: Michenka Ivo | C83: Paskov | D83: 2002
A84: 81 | B84: Dudys Viktor | C84: Vendryně | D84: 2008
A85: 82 | B85: Pánek Jakub | C85: Kozlovice | D85: 2005
A86: 83 | B86: Tikal Tobiáš | C86: TTC F-M | D86: 2008
A87: 84 | B87: Šrámková Tereza | C87: Frýdlant | D87: 2006
A88: 85 | B88: Slaný Martin | C88: Paskov | D88: 2008
A89: 86 | B89: Fajkus Milan | C89: Frýdlant | D89: 2005
A90: 87 | B90: Kresta Filip | C90: Frýdlant | D90: 2007
A91: 88 | B91: Nitrová Valerie | C91: Frýdlant | D91: 2007
A92: 89 | B92: Šnajder Jakub | C92: Frýdlant | D92: 2004
A93: 90 | B93: Groman Marie | C93: Frýdlant | D93: 2007
A94: 91 | B94: Franěk Ondřej | C94: Frýdlant | D94: 2005
A95: 92 | B95: Papíková Elizabeth | C95: Frýdlant | D95: 2006
A96: 93 | B96: Hampl Vojtěch | C96: Frýdlant | D96: 2008
A97: 94 | B97: Turek Josef | C97: Dolní Lomná | D97: 2001
A98: 95 | B98: Ondračka Adam | C98: Frýdlant | D98: 2007
A99: 96 | B99: Vašek Lukáš | C99: Frýdlant | D99: 2006
A100: 97 | B100: Bakota Adam | C100: Frýdlant | D100: 2006
A101: 98 | B101: Hamar Tomáš | C101: Brušperk | D101: 2004
A102: 99 | B102: Šrámková Daniela | C102: Frýdlant | D102: 2005
A103: 100 | B103: Jakubíková Nela | C103: Kozlovice | D103: 2006
A104: 101 | B104: Pánková Tereza | C104: Kozlovice | D104: 2007
A105: 102 | B105: Petrů Matouš | C105: Kozlovice | D105: 2006
A106: 103 | B106: Dostál Piotr | C106: Ropice | D106: 2005
A107: 104 | B107: Škandera Vojtěch | C107: Dolní Lomná | D107: 2004
A108: 105 | B108: Martynek Filip | C108: Dolní Lomná | D108: 2003
A109: 106 | B109: Gluza Jan | C109: Třinec | D109: 2005
A110: 107 | B110: Jokiel Patrik | C110: Český Těšín | D110: 2001
A111: 108 | B111: Danemark Roman | C111: Ropice | D111: 2004
A112: 109 | B112: Herman Ondřej | C112: KST Ostrava | D112: 2008
A113: 110 | B113: Fuchsík Šimon | C113: Frýdlant | D113: 2008
A114: 111 | B114: Jílková Tereza | C114: Frýdlant | D114: 2008
A115: 112 | B115: Onderek Martin | C115: Frýdlant | D115: 2008
A116: 113 | B116: Molek Matěj | C116: Frýdlant | D116: 2006
A117: 114 | B117: Molek Martin | C117: Frýdlant | D117: 2009
A118: 115 | B118: Foldyna Robin | C118: Frýdlant | D118: 2003
A119: 116 | B119: Michenka Ivo | C119: Paskov | D119: 2002
A120: 117 | B120: Sedlařík Leo | C120: Paskov | D120: 2003
A121: 118 | B121: Krucina Vojtěch | C121: TJ Sokol Nýdek | D121: 2005
A122: 119 | B122: Szturc Ondřej | C122: Vendryně | D122: 2004
A123: 120 | B123: Dvořáková Gábina | C123: CDU Ostrava | D123: 2006
A124: 121 | B124: Kotajný Jakub | C124: Vendryně | D124: 2003
A125: 122 | B125: Brož Jan | C125: Brušperk | D125: 2006
A126: 123 | B126: Kočvara Lukáš | C126: CDU Ostrava | D126: 2006
A127: 124 | B127: Mlčoch Jan | C127: CDU Ostrava | D127: 2008
A128: 125 | B128: Fabián Tobiáš | C128: TTC F-M | D128: 2011
A129: 126 | B129: Kulštejn Ondřej | C129: Návsí | D129: 2005
A130: 127 | B130: Voloch Jiří | C130: CDU Ostrava | D130: 2004
A131: 128 | B131: Svoboda Vojtěch | C131: TTC F-M | D131: 2006
A132: 129 | B132: Staněk Michael | C132: Chotěbuz | D132: 2003
A133: 130 | B133: Pavlowski Vít | C133: Chotěbuz | D133: 2001
A134: 131 | B134: Kubiena Roman | C134: Chotěbuz | D134: 2004
A135: 132 | B135: Heczko David | C135: Návsí | D135: 2007
A136: 133 | B136: Vajda Ondřej | C136: Brušperk | D136: 2005
A137: 134 | B137: Viňanský Pavel | C137: Brušperk | D137: 2008
A138: 135 | B138: Blahuta Petr | C138: Frýdlant | D138: 2006
A139: 136 | B139: Špaček Michal | C139: Brušperk | D139: 2007
A140: 137 | B140: Přeček Erik | C140: škola p-p Ostrava | D140: 2007
A141: 138 | B141: Halfar Jan | C141: Český Těšín | D141: 2005
A142: 139 | B142: Kyselý Štěpán | C142: Mořkov | D142: 2004
A143: 140 | B143: Kyselý Ondřej | C143: Mořkov | D143: 2007
A144: 141 | B144: Pajma Petr | C144: Paskov | D144: 2004
A145: 142 | B145: Kotas Jakub | C145: Třinec | D145: 2008
A146: 143 | B146: Macíček Jan | C146: Mořkov | D146: 2004
A147: 144 | B147: Kaiser František | C147: SK Frýdlant | D147: 2005
A148: 145 | B148: Dmytruch Michal | C148: SK Frýdlant | D148: 2001
A149: 146 | B149: Polášek Daniel | C149: SK Frýdlant | D149: 2007
A150: 147 | B150: Michna Oskar | C150: Paskov | D150: 2007
A151: 148 | B151: Bortel Kryštof | C151: CDU Ostrava | D151: 2009
A152: 149 | B152: Menšík Martin | C152: SK Frýdlant | D152: 2010
A153: 150 | B153: Filip Matouš | C153: SK Frýdlant | D153: 2010
A154: 151 | B154: Ježovič Jan | C154: Český Těšín | D154: 2005
A155: 152 | B155: Mniszak Lukáš | C155: Frýdlant | D155: 2004
A156: 153 | B156: Kocián Vojtěch | C156: Brušperk | D156: 2006
A157: 154 | B157: Brudný Sebastián | C157: Český Těšín | D157: 2008
A158: 155 | B158: Stavarský Jakub | C158: Český Těšín | D158: 2006
A159: 156 | B159: Hrabovský Adam | C159: Brušperk | D159: 2006
A160: 157 | B160: Zvrtek Lukáš | C160: Třinec | D160: 2007
A161: 158 | B161: Tomalík Ondřej | C161: TTC Frýdlant | D161: 2009
A162: 159 | B162: Kajfosz Jakub | C162: Třinec | D162: 2006
A163: 160 | B163: Pánek Michal | C163: Český Těšín | D163: 2007
A164: 161 | B164: Lepík František | C164: Kozlovice | D164: 2008
A165: 162 | B165: Žáček Jakub | C165: Kozlovice | D165: 2008
A166: 163 | B166: Vitt Tomáš | C166: Kozlovice | D166: 2008
A167: 164 | B167: Rakowski Jan | C167: Třinec | D167: 2006
A168: 165 | B168: Turek Dalibor | C168: ? | D168: ?
A169: 166
A170: 167
A171: 168
A172: 169
A173: 170
A174: 171
A175: 172
A176: 173
A177: 174
A178: 175
A179: 176
A180: 177
A181: 178
A182: 179
A183: 180
A184: 181
A185: 182
A186: 183
A187: 184
A188: 185
A189: 186
A190: 187
A191: 188
A192: 189
A193: 190
A194: 191
A195: 192
A196: 193
A197: 194
A198: 195
A199: 196
A200: 197
A201: 198
... 2 more rows

Sheet průměrné umístění
B1: NASAZOVACÍ ŽEBŘÍČEK NA ZÁKLADĚ PRŮMĚRNÉHO UMÍSTĚNÍ
G3: 1 | H3: 2 | I3: 3 | J3: 4 | K3: 5
A4: poř. | B4: č.h. | C4: Jméno | D4: oddíl/klub | E4: nar. | F4: průměr 2017/2018 | G4: Frýdlant | H4: Brušperk | I4: ČT | J4: ČT | L4: počet turnajů + výchozí pořadí | M4: průměrné umístění
A5: 1 | B5: 59 | C5: =IF($B5="","",VLOOKUP($B5,Seznam!$A$4:$D$500,2)) -> Szotkowski Jan | D5: =IF($B5="","",VLOOKUP($B5,Seznam!$A$4:$D$500,3)) -> Třinec | E5: =IF($B5="","",VLOOKUP($B5,Seznam!$A$4:$D$500,4)) -> 2006 | F5: 2 | I5: 1 | J5: 1 | L5: =IF(AND(F5="",G5="",H5="",I5="",J5="",K5=""),"",COUNTA(F5:K5)) -> 3 | M5: =IF(OR(F5>0,G5>0,H5>0,I5>0,J5>0,K5>0),ROUNDUP(SUM(F5:K5)/L5,1),"") -> 1.4
A6: 2 | B6: 13 | C6: =IF($B6="","",VLOOKUP($B6,Seznam!$A$4:$D$500,2)) -> Neuwirth Jaroslav | D6: =IF($B6="","",VLOOKUP($B6,Seznam!$A$4:$D$500,3)) -> Brušperk | E6: =IF($B6="","",VLOOKUP($B6,Seznam!$A$4:$D$500,4)) -> 2002 | F6: 2.6 | G6: 1 | H6: 3 | L6: 3 | M6: 2.2
A7: 3 | B7: 20 | C7: =IF($B7="","",VLOOKUP($B7,Seznam!$A$4:$D$500,2)) -> Mrowetz Bruno | D7: =IF($B7="","",VLOOKUP($B7,Seznam!$A$4:$D$500,3)) -> Brušperk | E7: =IF($B7="","",VLOOKUP($B7,Seznam!$A$4:$D$500,4)) -> 2004 | F7: 3.5 | H7: 1 | L7: 2 | M7: 2.3
A8: 4 | B8: 16 | C8: =IF($B8="","",VLOOKUP($B8,Seznam!$A$4:$D$500,2)) -> Lasota Laurent | D8: =IF($B8="","",VLOOKUP($B8,Seznam!$A$4:$D$500,3)) -> Lištná | E8: =IF($B8="","",VLOOKUP($B8,Seznam!$A$4:$D$500,4)) -> 2001 | F8: 2.5 | L8: 1 | M8: 2.5
A9: 5 | B9: 5 | C9: =IF($B9="","",VLOOKUP($B9,Seznam!$A$4:$D$500,2)) -> Janečka Martin | D9: =IF($B9="","",VLOOKUP($B9,Seznam!$A$4:$D$500,3)) -> Brušperk | E9: =IF($B9="","",VLOOKUP($B9,Seznam!$A$4:$D$500,4)) -> 2002 | F9: 3.9 | H9: 2 | L9: 2 | M9: 3
A10: 6 | B10: 107 | C10: =IF($B10="","",VLOOKUP($B10,Seznam!$A$4:$D$500,2)) -> Jokiel Patrik | D10: =IF($B10="","",VLOOKUP($B10,Seznam!$A$4:$D$500,3)) -> Český Těšín | E10: =IF($B10="","",VLOOKUP($B10,Seznam!$A$4:$D$500,4)) -> 2001 | I10: 6 | J10: 3 | L10: 2 | M10: 4.5
A11: 7 | B11: 27 | C11: =IF($B11="","",VLOOKUP($B11,Seznam!$A$4:$D$500,2)) -> Hýl Jakub | D11: =IF($B11="","",VLOOKUP($B11,Seznam!$A$4:$D$500,3)) -> Brušperk | E11: =IF($B11="","",VLOOKUP($B11,Seznam!$A$4:$D$500,4)) -> 2006 | F11: 9.8 | G11: 2 | H11: 4 | L11: 3 | M11: 5.3
A12: 8 | B12: 71 | C12: =IF($B12="","",VLOOKUP($B12,Seznam!$A$4:$D$500,2)) -> Lisztwán Jan | D12: =IF($B12="","",VLOOKUP($B12,Seznam!$A$4:$D$500,3)) -> Vendryně | E12: =IF($B12="","",VLOOKUP($B12,Seznam!$A$4:$D$500,4)) -> 2005 | F12: 5.7 | L12: 1 | M12: 5.7
A13: 9 | B13: 36 | C13: =IF($B13="","",VLOOKUP($B13,Seznam!$A$4:$D$500,2)) -> Slaný Vojtěch | D13: =IF($B13="","",VLOOKUP($B13,Seznam!$A$4:$D$500,3)) -> Paskov | E13: =IF($B13="","",VLOOKUP($B13,Seznam!$A$4:$D$500,4)) -> 2005 | F13: 6.3 | L13: 1 | M13: 6.3
A14: 10 | B14: 38 | C14: =IF($B14="","",VLOOKUP($B14,Seznam!$A$4:$D$500,2)) -> Zvrtek Jan | D14: =IF($B14="","",VLOOKUP($B14,Seznam!$A$4:$D$500,3)) -> Návsí | E14: =IF($B14="","",VLOOKUP($B14,Seznam!$A$4:$D$500,4)) -> 2004 | H14: 17 | I14: 2 | J14: 2 | L14: 3 | M14: 7
A15: 11 | B15: 97 | C15: =IF($B15="","",VLOOKUP($B15,Seznam!$A$4:$D$500,2)) -> Bakota Adam | D15: =IF($B15="","",VLOOKUP($B15,Seznam!$A$4:$D$500,3)) -> Frýdlant | E15: =IF($B15="","",VLOOKUP($B15,Seznam!$A$4:$D$500,4)) -> 2006 | F15: 12.3 | H15: 5 | I15: 4 | L15: 3 | M15: 7.1
A16: 12 | B16: 138 | C16: =IF($B16="","",VLOOKUP($B16,Seznam!$A$4:$D$500,2)) -> Halfar Jan | D16: =IF($B16="","",VLOOKUP($B16,Seznam!$A$4:$D$500,3)) -> Český Těšín | E16: =IF($B16="","",VLOOKUP($B16,Seznam!$A$4:$D$500,4)) -> 2005 | I16: 11 | J16: 4 | L16: 2 | M16: 7.5
A17: 13 | B17: 43 | C17: =IF($B17="","",VLOOKUP($B17,Seznam!$A$4:$D$500,2)) -> Stávek Jan | D17: =IF($B17="","",VLOOKUP($B17,Seznam!$A$4:$D$500,3)) -> Malenovice | E17: =IF($B17="","",VLOOKUP($B17,Seznam!$A$4:$D$500,4)) -> 2003 | F17: 7.9 | L17: 1 | M17: 7.9
A18: 14 | B18: 40 | C18: =IF($B18="","",VLOOKUP($B18,Seznam!$A$4:$D$500,2)) -> Pohanka Marek | D18: =IF($B18="","",VLOOKUP($B18,Seznam!$A$4:$D$500,3)) -> Paskov | E18: =IF($B18="","",VLOOKUP($B18,Seznam!$A$4:$D$500,4)) -> 2001 | F18: 9.8 | H18: 6 | L18: 2 | M18: 7.9
A19: 15 | B19: 95 | C19: =IF($B19="","",VLOOKUP($B19,Seznam!$A$4:$D$500,2)) -> Ondračka Adam | D19: =IF($B19="","",VLOOKUP($B19,Seznam!$A$4:$D$500,3)) -> Frýdlant | E19: =IF($B19="","",VLOOKUP($B19,Seznam!$A$4:$D$500,4)) -> 2007 | F19: 18 | G19: 3 | I19: 3 | L19: 3 | M19: 8
A20: 16 | B20: 121 | C20: =IF($B20="","",VLOOKUP($B20,Seznam!$A$4:$D$500,2)) -> Kotajný Jakub | D20: =IF($B20="","",VLOOKUP($B20,Seznam!$A$4:$D$500,3)) -> Vendryně | E20: =IF($B20="","",VLOOKUP($B20,Seznam!$A$4:$D$500,4)) -> 2003 | F20: 11 | I20: 5 | L20: 2 | M20: 8
A21: 17 | B21: 75 | C21: =IF($B21="","",VLOOKUP($B21,Seznam!$A$4:$D$500,2)) -> Duda Lukáš | D21: =IF($B21="","",VLOOKUP($B21,Seznam!$A$4:$D$500,3)) -> Návsí | E21: =IF($B21="","",VLOOKUP($B21,Seznam!$A$4:$D$500,4)) -> 2001 | I21: 8 | L21: 1 | M21: 8
A22: 18 | B22: 94 | C22: =IF($B22="","",VLOOKUP($B22,Seznam!$A$4:$D$500,2)) -> Turek Josef | D22: =IF($B22="","",VLOOKUP($B22,Seznam!$A$4:$D$500,3)) -> Dolní Lomná | E22: =IF($B22="","",VLOOKUP($B22,Seznam!$A$4:$D$500,4)) -> 2001 | I22: 9 | J22: 7 | L22: 2 | M22: 8
A23: 19 | B23: 98 | C23: =IF($B23="","",VLOOKUP($B23,Seznam!$A$4:$D$500,2)) -> Hamar Tomáš | D23: =IF($B23="","",VLOOKUP($B23,Seznam!$A$4:$D$500,3)) -> Brušperk | E23: =IF($B23="","",VLOOKUP($B23,Seznam!$A$4:$D$500,4)) -> 2004 | F23: 15.6 | G23: 6 | H23: 7 | J23: 5 | L23: 4 | M23: 8.4
A24: 20 | B24: 129 | C24: =IF($B24="","",VLOOKUP($B24,Seznam!$A$4:$D$500,2)) -> Staněk Michael | D24: =IF($B24="","",VLOOKUP($B24,Seznam!$A$4:$D$500,3)) -> Chotěbuz | E24: =IF($B24="","",VLOOKUP($B24,Seznam!$A$4:$D$500,4)) -> 2003 | J24: 9 | L24: 1 | M24: 9
A25: 21 | B25: 48 | C25: =IF($B25="","",VLOOKUP($B25,Seznam!$A$4:$D$500,2)) -> Michna Viktor | D25: =IF($B25="","",VLOOKUP($B25,Seznam!$A$4:$D$500,3)) -> Paskov | E25: =IF($B25="","",VLOOKUP($B25,Seznam!$A$4:$D$500,4)) -> 2004 | F25: 12.2 | G25: 7 | J25: 8 | L25: 3 | M25: 9.1
A26: 22 | B26: 82 | C26: =IF($B26="","",VLOOKUP($B26,Seznam!$A$4:$D$500,2)) -> Pánek Jakub | D26: =IF($B26="","",VLOOKUP($B26,Seznam!$A$4:$D$500,3)) -> Kozlovice | E26: =IF($B26="","",VLOOKUP($B26,Seznam!$A$4:$D$500,4)) -> 2005 | F26: 16.7 | G26: 5 | H26: 8 | L26: 3 | M26: 9.9
A27: 23 | B27: 33 | C27: =IF($B27="","",VLOOKUP($B27,Seznam!$A$4:$D$500,2)) -> Lichna Matěj | D27: =IF($B27="","",VLOOKUP($B27,Seznam!$A$4:$D$500,3)) -> Havířov | E27: =IF($B27="","",VLOOKUP($B27,Seznam!$A$4:$D$500,4)) -> 2006 | F27: 11.7 | L27: 1 | M27: 11.7
A28: 24 | B28: 64 | C28: =IF($B28="","",VLOOKUP($B28,Seznam!$A$4:$D$500,2)) -> Tabach René | D28: =IF($B28="","",VLOOKUP($B28,Seznam!$A$4:$D$500,3)) -> Kozlovice | E28: =IF($B28="","",VLOOKUP($B28,Seznam!$A$4:$D$500,4)) -> 2005 | F28: 11.7 | L28: 1 | M28: 11.7
A29: 25 | B29: 55 | C29: =IF($B29="","",VLOOKUP($B29,Seznam!$A$4:$D$500,2)) -> Ševeček Jan | D29: =IF($B29="","",VLOOKUP($B29,Seznam!$A$4:$D$500,3)) -> Brušperk | E29: =IF($B29="","",VLOOKUP($B29,Seznam!$A$4:$D$500,4)) -> 2005 | F29: 17.3 | G29: 8 | H29: 10 | L29: 3 | M29: 11.8
A30: 26 | B30: 9 | C30: =IF($B30="","",VLOOKUP($B30,Seznam!$A$4:$D$500,2)) -> Šlachta Prokop Antonín | D30: =IF($B30="","",VLOOKUP($B30,Seznam!$A$4:$D$500,3)) -> Frýdek - Místek | E30: =IF($B30="","",VLOOKUP($B30,Seznam!$A$4:$D$500,4)) -> 2006 | F30: 20.3 | G30: 4 | L30: 2 | M30: 12.2
A31: 27 | B31: 39 | C31: =IF($B31="","",VLOOKUP($B31,Seznam!$A$4:$D$500,2)) -> Walek Adrian | D31: =IF($B31="","",VLOOKUP($B31,Seznam!$A$4:$D$500,3)) -> Návsí | E31: =IF($B31="","",VLOOKUP($B31,Seznam!$A$4:$D$500,4)) -> 2005 | H31: 18 | I31: 7 | L31: 2 | M31: 12.5
A32: 28 | B32: 65 | C32: =IF($B32="","",VLOOKUP($B32,Seznam!$A$4:$D$500,2)) -> Stramová Eliška | D32: =IF($B32="","",VLOOKUP($B32,Seznam!$A$4:$D$500,3)) -> Frýdlant | E32: =IF($B32="","",VLOOKUP($B32,Seznam!$A$4:$D$500,4)) -> 2005 | F32: 22 | G32: 9 | H32: 9 | I32: 10 | L32: 4 | M32: 12.5
A33: 29 | B33: 62 | C33: =IF($B33="","",VLOOKUP($B33,Seznam!$A$4:$D$500,2)) -> Neuwirth Ondřej | D33: =IF($B33="","",VLOOKUP($B33,Seznam!$A$4:$D$500,3)) -> Brušperk | E33: =IF($B33="","",VLOOKUP($B33,Seznam!$A$4:$D$500,4)) -> 2006 | F33: 20.5 | G33: 10 | H33: 11 | I33: 12 | J33: 10 | L33: 5 | M33: 12.7
A34: 30 | B34: 63 | C34: =IF($B34="","",VLOOKUP($B34,Seznam!$A$4:$D$500,2)) -> Jendrůlek Adam | D34: =IF($B34="","",VLOOKUP($B34,Seznam!$A$4:$D$500,3)) -> Ropice | E34: =IF($B34="","",VLOOKUP($B34,Seznam!$A$4:$D$500,4)) -> 2003 | F34: 13 | L34: 1 | M34: 13
A35: 31 | B35: 10 | C35: =IF($B35="","",VLOOKUP($B35,Seznam!$A$4:$D$500,2)) -> Kuchař Andrej | D35: =IF($B35="","",VLOOKUP($B35,Seznam!$A$4:$D$500,3)) -> CDU Ostrava | E35: =IF($B35="","",VLOOKUP($B35,Seznam!$A$4:$D$500,4)) -> 2004 | F35: 13.5 | L35: 1 | M35: 13.5
A36: 32 | B36: 3 | C36: =IF($B36="","",VLOOKUP($B36,Seznam!$A$4:$D$500,2)) -> Muroň Ondřej | D36: =IF($B36="","",VLOOKUP($B36,Seznam!$A$4:$D$500,3)) -> TTC Frýdlant | E36: =IF($B36="","",VLOOKUP($B36,Seznam!$A$4:$D$500,4)) -> 2004 | F36: 19 | H36: 14 | I36: 15 | J36: 13 | L36: 4 | M36: 15.3
A37: 33 | B37: 17 | C37: =IF($B37="","",VLOOKUP($B37,Seznam!$A$4:$D$500,2)) -> Michnová Marika | D37: =IF($B37="","",VLOOKUP($B37,Seznam!$A$4:$D$500,3)) -> SK Frýdlant | E37: =IF($B37="","",VLOOKUP($B37,Seznam!$A$4:$D$500,4)) -> 2008 | F37: 24 | G37: 12 | H37: 15 | J37: 11 | L37: =IF(AND(F37="",G37="",H37="",I37="",J37="",K37=""),"",COUNTA(F37:K37)) -> 4 | M37: =IF(OR(F37>0,G37>0,H37>0,I37>0,J37>0,K37>0),ROUNDUP(SUM(F37:K37)/L37,1),"") -> 15.5
A38: 34 | B38: 79 | C38: =IF($B38="","",VLOOKUP($B38,Seznam!$A$4:$D$500,2)) -> Červenka Jan | D38: =IF($B38="","",VLOOKUP($B38,Seznam!$A$4:$D$500,3)) -> Brušperk | E38: =IF($B38="","",VLOOKUP($B38,Seznam!$A$4:$D$500,4)) -> 2004 | F38: 20.8 | H38: 13 | I38: 13 | L38: 3 | M38: 15.6
A39: 35 | B39: 35 | C39: =IF($B39="","",VLOOKUP($B39,Seznam!$A$4:$D$500,2)) -> Moravec Václav | D39: =IF($B39="","",VLOOKUP($B39,Seznam!$A$4:$D$500,3)) -> Paskov | E39: =IF($B39="","",VLOOKUP($B39,Seznam!$A$4:$D$500,4)) -> 2008 | F39: 15.7 | L39: 1 | M39: 15.7
A40: 36 | B40: 2 | C40: =IF($B40="","",VLOOKUP($B40,Seznam!$A$4:$D$500,2)) -> Blahuta Petr | D40: =IF($B40="","",VLOOKUP($B40,Seznam!$A$4:$D$500,3)) -> SK Frýdlant | E40: =IF($B40="","",VLOOKUP($B40,Seznam!$A$4:$D$500,4)) -> 2006 | F40: 17 | L40: 1 | M40: 17
A41: 37 | B41: 139 | C41: =IF($B41="","",VLOOKUP($B41,Seznam!$A$4:$D$500,2)) -> Kyselý Štěpán | D41: =IF($B41="","",VLOOKUP($B41,Seznam!$A$4:$D$500,3)) -> Mořkov | E41: =IF($B41="","",VLOOKUP($B41,Seznam!$A$4:$D$500,4)) -> 2004 | G41: 17 | L41: 1 | M41: 17
A42: 38 | B42: 118 | C42: =IF($B42="","",VLOOKUP($B42,Seznam!$A$4:$D$500,2)) -> Krucina Vojtěch | D42: =IF($B42="","",VLOOKUP($B42,Seznam!$A$4:$D$500,3)) -> TJ Sokol Nýdek | E42: =IF($B42="","",VLOOKUP($B42,Seznam!$A$4:$D$500,4)) -> 2005 | F42: 28 | I42: 17 | J42: 6 | L42: 3 | M42: 17
A43: 39 | B43: 19 | C43: =IF($B43="","",VLOOKUP($B43,Seznam!$A$4:$D$500,2)) -> Přikryl Václav | D43: =IF($B43="","",VLOOKUP($B43,Seznam!$A$4:$D$500,3)) -> TTC Frýdlant | E43: =IF($B43="","",VLOOKUP($B43,Seznam!$A$4:$D$500,4)) -> 2005 | F43: 29 | G43: 15 | H43: 12 | J43: 12 | L43: 4 | M43: 17
A44: 40 | B44: 45 | C44: =IF($B44="","",VLOOKUP($B44,Seznam!$A$4:$D$500,2)) -> Smetana Dominik | D44: =IF($B44="","",VLOOKUP($B44,Seznam!$A$4:$D$500,3)) -> Ropice | E44: =IF($B44="","",VLOOKUP($B44,Seznam!$A$4:$D$500,4)) -> 2003 | F44: 17.4 | L44: 1 | M44: 17.4
A45: 41 | B45: 4 | C45: =IF($B45="","",VLOOKUP($B45,Seznam!$A$4:$D$500,2)) -> Kozel Ladislav | D45: =IF($B45="","",VLOOKUP($B45,Seznam!$A$4:$D$500,3)) -> TTC Frýdlant | E45: =IF($B45="","",VLOOKUP($B45,Seznam!$A$4:$D$500,4)) -> 2004 | F45: 20 | H45: 16 | I45: 16 | L45: 3 | M45: 17.4
A46: 42 | B46: 56 | C46: =IF($B46="","",VLOOKUP($B46,Seznam!$A$4:$D$500,2)) -> Stodůlková Tereza | D46: =IF($B46="","",VLOOKUP($B46,Seznam!$A$4:$D$500,3)) -> SK Frýdlant | E46: =IF($B46="","",VLOOKUP($B46,Seznam!$A$4:$D$500,4)) -> 2008 | F46: 19.5 | J46: 16 | L46: 2 | M46: 17.8
A47: 43 | B47: 85 | C47: =IF($B47="","",VLOOKUP($B47,Seznam!$A$4:$D$500,2)) -> Slaný Martin | D47: =IF($B47="","",VLOOKUP($B47,Seznam!$A$4:$D$500,3)) -> Paskov | E47: =IF($B47="","",VLOOKUP($B47,Seznam!$A$4:$D$500,4)) -> 2008 | F47: 17.9 | L47: 1 | M47: 17.9
A48: 44 | B48: 42 | C48: =IF($B48="","",VLOOKUP($B48,Seznam!$A$4:$D$500,2)) -> Smolka Daniel | D48: =IF($B48="","",VLOOKUP($B48,Seznam!$A$4:$D$500,3)) -> Kozlovice | E48: =IF($B48="","",VLOOKUP($B48,Seznam!$A$4:$D$500,4)) -> 2005 | F48: 18 | L48: 1 | M48: 18
A49: 45 | B49: 140 | C49: =IF($B49="","",VLOOKUP($B49,Seznam!$A$4:$D$500,2)) -> Kyselý Ondřej | D49: =IF($B49="","",VLOOKUP($B49,Seznam!$A$4:$D$500,3)) -> Mořkov | E49: =IF($B49="","",VLOOKUP($B49,Seznam!$A$4:$D$500,4)) -> 2007 | G49: 18 | L49: 1 | M49: 18
A50: 46 | B50: 52 | C50: =IF($B50="","",VLOOKUP($B50,Seznam!$A$4:$D$500,2)) -> Kunát Martin | D50: =IF($B50="","",VLOOKUP($B50,Seznam!$A$4:$D$500,3)) -> Paskov | E50: =IF($B50="","",VLOOKUP($B50,Seznam!$A$4:$D$500,4)) -> 2003 | F50: 18.4 | L50: 1 | M50: 18.4
A51: 47 | B51: 58 | C51: =IF($B51="","",VLOOKUP($B51,Seznam!$A$4:$D$500,2)) -> Chudíková Nikol | D51: =IF($B51="","",VLOOKUP($B51,Seznam!$A$4:$D$500,3)) -> Komorní Lhotka | E51: =IF($B51="","",VLOOKUP($B51,Seznam!$A$4:$D$500,4)) -> 2007 | I51: 22 | J51: 15 | L51: 2 | M51: 18.5
A52: 48 | B52: 132 | C52: =IF($B52="","",VLOOKUP($B52,Seznam!$A$4:$D$500,2)) -> Heczko David | D52: =IF($B52="","",VLOOKUP($B52,Seznam!$A$4:$D$500,3)) -> Návsí | E52: =IF($B52="","",VLOOKUP($B52,Seznam!$A$4:$D$500,4)) -> 2007 | I52: 19 | L52: 1 | M52: 19
A53: 49 | B53: 120 | C53: =IF($B53="","",VLOOKUP($B53,Seznam!$A$4:$D$500,2)) -> Dvořáková Gábina | D53: =IF($B53="","",VLOOKUP($B53,Seznam!$A$4:$D$500,3)) -> CDU Ostrava | E53: =IF($B53="","",VLOOKUP($B53,Seznam!$A$4:$D$500,4)) -> 2006 | F53: 28 | G53: 11 | L53: 2 | M53: 19.5
A54: 50 | B54: 49 | C54: =IF($B54="","",VLOOKUP($B54,Seznam!$A$4:$D$500,2)) -> Bonek Daniel | D54: =IF($B54="","",VLOOKUP($B54,Seznam!$A$4:$D$500,3)) -> TJ Sokol Nýdek | E54: =IF($B54="","",VLOOKUP($B54,Seznam!$A$4:$D$500,4)) -> 2004 | F54: 27 | I54: 18 | J54: 14 | L54: 3 | M54: 19.7
A55: 51 | B55: 126 | C55: =IF($B55="","",VLOOKUP($B55,Seznam!$A$4:$D$500,2)) -> Kulštejn Ondřej | D55: =IF($B55="","",VLOOKUP($B55,Seznam!$A$4:$D$500,3)) -> Návsí | E55: =IF($B55="","",VLOOKUP($B55,Seznam!$A$4:$D$500,4)) -> 2005 | I55: 20 | L55: 1 | M55: 20
A56: 52 | B56: 30 | C56: =IF($B56="","",VLOOKUP($B56,Seznam!$A$4:$D$500,2)) -> Olejník Oliver | D56: =IF($B56="","",VLOOKUP($B56,Seznam!$A$4:$D$500,3)) -> TTC F-M | E56: =IF($B56="","",VLOOKUP($B56,Seznam!$A$4:$D$500,4)) -> 2011 | F56: 28.7 | G56: 13 | L56: 2 | M56: 20.9
A57: 53 | B57: 81 | C57: =IF($B57="","",VLOOKUP($B57,Seznam!$A$4:$D$500,2)) -> Dudys Viktor | D57: =IF($B57="","",VLOOKUP($B57,Seznam!$A$4:$D$500,3)) -> Vendryně | E57: =IF($B57="","",VLOOKUP($B57,Seznam!$A$4:$D$500,4)) -> 2008 | F57: 21 | L57: 1 | M57: 21
A58: 54 | B58: 6 | C58: =IF($B58="","",VLOOKUP($B58,Seznam!$A$4:$D$500,2)) -> Rybák Tomáš | D58: =IF($B58="","",VLOOKUP($B58,Seznam!$A$4:$D$500,3)) -> SK Frýdlant | E58: =IF($B58="","",VLOOKUP($B58,Seznam!$A$4:$D$500,4)) -> 2006 | F58: 21 | L58: 1 | M58: 21
A59: 55 | B59: 44 | C59: =IF($B59="","",VLOOKUP($B59,Seznam!$A$4:$D$500,2)) -> Zvrtková Magdaléna | D59: =IF($B59="","",VLOOKUP($B59,Seznam!$A$4:$D$500,3)) -> Návsí | E59: =IF($B59="","",VLOOKUP($B59,Seznam!$A$4:$D$500,4)) -> 2002 | I59: 21 | L59: 1 | M59: 21
A60: 56 | B60: 130 | C60: =IF($B60="","",VLOOKUP($B60,Seznam!$A$4:$D$500,2)) -> Pavlowski Vít | D60: =IF($B60="","",VLOOKUP($B60,Seznam!$A$4:$D$500,3)) -> Chotěbuz | E60: =IF($B60="","",VLOOKUP($B60,Seznam!$A$4:$D$500,4)) -> 2001 | F60: 26 | J60: 17 | L60: 2 | M60: 21.5
A61: 57 | B61: 109 | C61: =IF($B61="","",VLOOKUP($B61,Seznam!$A$4:$D$500,2)) -> Herman Ondřej | D61: =IF($B61="","",VLOOKUP($B61,Seznam!$A$4:$D$500,3)) -> KST Ostrava | E61: =IF($B61="","",VLOOKUP($B61,Seznam!$A$4:$D$500,4)) -> 2008 | F61: 22 | L61: 1 | M61: 22
A62: 58 | B62: 133 | C62: =IF($B62="","",VLOOKUP($B62,Seznam!$A$4:$D$500,2)) -> Vajda Ondřej | D62: =IF($B62="","",VLOOKUP($B62,Seznam!$A$4:$D$500,3)) -> Brušperk | E62: =IF($B62="","",VLOOKUP($B62,Seznam!$A$4:$D$500,4)) -> 2005 | F62: 33 | G62: 19 | H62: 22 | I62: 14 | L62: 4 | M62: 22
A63: 59 | B63: 141 | C63: =IF($B63="","",VLOOKUP($B63,Seznam!$A$4:$D$500,2)) -> Pajma Petr | D63: =IF($B63="","",VLOOKUP($B63,Seznam!$A$4:$D$500,3)) -> Paskov | E63: =IF($B63="","",VLOOKUP($B63,Seznam!$A$4:$D$500,4)) -> 2004 | G63: 25 | H63: 20 | J63: 21 | L63: 3 | M63: 22
A64: 60 | B64: 1 | C64: =IF($B64="","",VLOOKUP($B64,Seznam!$A$4:$D$500,2)) -> Jančák Richard | D64: =IF($B64="","",VLOOKUP($B64,Seznam!$A$4:$D$500,3)) -> Brušperk | E64: =IF($B64="","",VLOOKUP($B64,Seznam!$A$4:$D$500,4)) -> 2006 | F64: 29.5 | H64: 21 | J64: 18 | L64: 3 | M64: 22.9
A65: 61 | B65: 50 | C65: =IF($B65="","",VLOOKUP($B65,Seznam!$A$4:$D$500,2)) -> Kisiala David | D65: =IF($B65="","",VLOOKUP($B65,Seznam!$A$4:$D$500,3)) -> Český Těšín | E65: =IF($B65="","",VLOOKUP($B65,Seznam!$A$4:$D$500,4)) -> 2006 | I65: 23 | L65: 1 | M65: 23
A66: 62 | B66: 110 | C66: =IF($B66="","",VLOOKUP($B66,Seznam!$A$4:$D$500,2)) -> Fuchsík Šimon | D66: =IF($B66="","",VLOOKUP($B66,Seznam!$A$4:$D$500,3)) -> Frýdlant | E66: =IF($B66="","",VLOOKUP($B66,Seznam!$A$4:$D$500,4)) -> 2008 | F66: 38 | G66: 14 | J66: 19 | L66: 3 | M66: 23.7
A67: 63 | B67: 11 | C67: =IF($B67="","",VLOOKUP($B67,Seznam!$A$4:$D$500,2)) -> Ščerbová Barbora | D67: =IF($B67="","",VLOOKUP($B67,Seznam!$A$4:$D$500,3)) -> SK Frýdlant | E67: =IF($B67="","",VLOOKUP($B67,Seznam!$A$4:$D$500,4)) -> 2005 | F67: 23.5 | G67: 24 | L67: 2 | M67: 23.8
A68: 64 | B68: 74 | C68: =IF($B68="","",VLOOKUP($B68,Seznam!$A$4:$D$500,2)) -> Somr Daniel | D68: =IF($B68="","",VLOOKUP($B68,Seznam!$A$4:$D$500,3)) -> Frýdlant | E68: =IF($B68="","",VLOOKUP($B68,Seznam!$A$4:$D$500,4)) -> 2007 | F68: 23.9 | L68: 1 | M68: 23.9
A69: 65 | B69: 104 | C69: =IF($B69="","",VLOOKUP($B69,Seznam!$A$4:$D$500,2)) -> Škandera Vojtěch | D69: =IF($B69="","",VLOOKUP($B69,Seznam!$A$4:$D$500,3)) -> Dolní Lomná | E69: =IF($B69="","",VLOOKUP($B69,Seznam!$A$4:$D$500,4)) -> 2004 | F69: 24 | L69: =IF(AND(F69="",G69="",H69="",I69="",J69="",K69=""),"",COUNTA(F69:K69)) -> 1 | M69: =IF(OR(F69>0,G69>0,H69>0,I69>0,J69>0,K69>0),ROUNDUP(SUM(F69:K69)/L69,1),"") -> 24
A70: 66 | B70: 124 | C70: =IF($B70="","",VLOOKUP($B70,Seznam!$A$4:$D$500,2)) -> Mlčoch Jan | D70: =IF($B70="","",VLOOKUP($B70,Seznam!$A$4:$D$500,3)) -> CDU Ostrava | E70: =IF($B70="","",VLOOKUP($B70,Seznam!$A$4:$D$500,4)) -> 2008 | F70: 32 | G70: 16 | L70: 2 | M70: 24
A71: 67 | B71: 68 | C71: =IF($B71="","",VLOOKUP($B71,Seznam!$A$4:$D$500,2)) -> Janota Tomáš | D71: =IF($B71="","",VLOOKUP($B71,Seznam!$A$4:$D$500,3)) -> Český Těšín | E71: =IF($B71="","",VLOOKUP($B71,Seznam!$A$4:$D$500,4)) -> 2005 | I71: 24 | J71: 24 | L71: 2 | M71: 24
A72: 68 | B72: 76 | C72: =IF($B72="","",VLOOKUP($B72,Seznam!$A$4:$D$500,2)) -> Vantuch Richard | D72: =IF($B72="","",VLOOKUP($B72,Seznam!$A$4:$D$500,3)) -> Brušperk | E72: =IF($B72="","",VLOOKUP($B72,Seznam!$A$4:$D$500,4)) -> 2009 | H72: 24 | L72: 1 | M72: 24
A73: 69 | B73: 12 | C73: =IF($B73="","",VLOOKUP($B73,Seznam!$A$4:$D$500,2)) -> Gavendová Andrea | D73: =IF($B73="","",VLOOKUP($B73,Seznam!$A$4:$D$500,3)) -> CDU Ostrava | E73: =IF($B73="","",VLOOKUP($B73,Seznam!$A$4:$D$500,4)) -> 2006 | F73: 27 | G73: 22 | L73: 2 | M73: 24.5
A74: 70 | B74: 145 | C74: =IF($B74="","",VLOOKUP($B74,Seznam!$A$4:$D$500,2)) -> Dmytruch Michal | D74: =IF($B74="","",VLOOKUP($B74,Seznam!$A$4:$D$500,3)) -> SK Frýdlant | E74: =IF($B74="","",VLOOKUP($B74,Seznam!$A$4:$D$500,4)) -> 2001 | G74: 30 | H74: 19 | L74: 2 | M74: 24.5
A75: 71 | B75: 28 | C75: =IF($B75="","",VLOOKUP($B75,Seznam!$A$4:$D$500,2)) -> Domenyová Klára | D75: =IF($B75="","",VLOOKUP($B75,Seznam!$A$4:$D$500,3)) -> Český Těšín | E75: =IF($B75="","",VLOOKUP($B75,Seznam!$A$4:$D$500,4)) -> 2003 | I75: 28 | J75: 22 | L75: 2 | M75: 25
A76: 72 | B76: 137 | C76: =IF($B76="","",VLOOKUP($B76,Seznam!$A$4:$D$500,2)) -> Přeček Erik | D76: =IF($B76="","",VLOOKUP($B76,Seznam!$A$4:$D$500,3)) -> škola p-p Ostrava | E76: =IF($B76="","",VLOOKUP($B76,Seznam!$A$4:$D$500,4)) -> 2007 | F76: 25 | L76: 1 | M76: 25
A77: 73 | B77: 37 | C77: =IF($B77="","",VLOOKUP($B77,Seznam!$A$4:$D$500,2)) -> Huta Lukáš | D77: =IF($B77="","",VLOOKUP($B77,Seznam!$A$4:$D$500,3)) -> Třinec | E77: =IF($B77="","",VLOOKUP($B77,Seznam!$A$4:$D$500,4)) -> 2006 | I77: 27 | J77: 23 | L77: 2 | M77: 25
A78: 74 | B78: 135 | C78: =IF($B78="","",VLOOKUP($B78,Seznam!$A$4:$D$500,2)) -> Blahuta Petr | D78: =IF($B78="","",VLOOKUP($B78,Seznam!$A$4:$D$500,3)) -> Frýdlant | E78: =IF($B78="","",VLOOKUP($B78,Seznam!$A$4:$D$500,4)) -> 2006 | J78: 25 | L78: 1 | M78: 25
A79: 75 | B79: 105 | C79: =IF($B79="","",VLOOKUP($B79,Seznam!$A$4:$D$500,2)) -> Martynek Filip | D79: =IF($B79="","",VLOOKUP($B79,Seznam!$A$4:$D$500,3)) -> Dolní Lomná | E79: =IF($B79="","",VLOOKUP($B79,Seznam!$A$4:$D$500,4)) -> 2003 | F79: 25.2 | L79: 1 | M79: 25.2
A80: 76 | B80: 103 | C80: =IF($B80="","",VLOOKUP($B80,Seznam!$A$4:$D$500,2)) -> Dostál Piotr | D80: =IF($B80="","",VLOOKUP($B80,Seznam!$A$4:$D$500,3)) -> Ropice | E80: =IF($B80="","",VLOOKUP($B80,Seznam!$A$4:$D$500,4)) -> 2005 | F80: 25.3 | L80: 1 | M80: 25.3
A81: 77 | B81: 78 | C81: =IF($B81="","",VLOOKUP($B81,Seznam!$A$4:$D$500,2)) -> Brozda David | D81: =IF($B81="","",VLOOKUP($B81,Seznam!$A$4:$D$500,3)) -> Ropice | E81: =IF($B81="","",VLOOKUP($B81,Seznam!$A$4:$D$500,4)) -> 2005 | F81: 25.9 | L81: 1 | M81: 25.9
A82: 78 | B82: 142 | C82: =IF($B82="","",VLOOKUP($B82,Seznam!$A$4:$D$500,2)) -> Kotas Jakub | D82: =IF($B82="","",VLOOKUP($B82,Seznam!$A$4:$D$500,3)) -> Třinec | E82: =IF($B82="","",VLOOKUP($B82,Seznam!$A$4:$D$500,4)) -> 2008 | G82: 26 | L82: 1 | M82: 26
A83: 79 | B83: 135 | C83: =IF($B83="","",VLOOKUP($B83,Seznam!$A$4:$D$500,2)) -> Blahuta Petr | D83: =IF($B83="","",VLOOKUP($B83,Seznam!$A$4:$D$500,3)) -> Frýdlant | E83: =IF($B83="","",VLOOKUP($B83,Seznam!$A$4:$D$500,4)) -> 2006 | I83: 26 | L83: 1 | M83: 26
A84: 80 | B84: 106 | C84: =IF($B84="","",VLOOKUP($B84,Seznam!$A$4:$D$500,2)) -> Gluza Jan | D84: =IF($B84="","",VLOOKUP($B84,Seznam!$A$4:$D$500,3)) -> Třinec | E84: =IF($B84="","",VLOOKUP($B84,Seznam!$A$4:$D$500,4)) -> 2005 | J84: 26 | L84: 1 | M84: 26
A85: 81 | B85: 124 | C85: =IF($B85="","",VLOOKUP($B85,Seznam!$A$4:$D$500,2)) -> Mlčoch Jan | D85: =IF($B85="","",VLOOKUP($B85,Seznam!$A$4:$D$500,3)) -> CDU Ostrava | E85: =IF($B85="","",VLOOKUP($B85,Seznam!$A$4:$D$500,4)) -> 2008 | F85: 26.3 | L85: 1 | M85: 26.3
A86: 82 | B86: 110 | C86: =IF($B86="","",VLOOKUP($B86,Seznam!$A$4:$D$500,2)) -> Fuchsík Šimon | D86: =IF($B86="","",VLOOKUP($B86,Seznam!$A$4:$D$500,3)) -> Frýdlant | E86: =IF($B86="","",VLOOKUP($B86,Seznam!$A$4:$D$500,4)) -> 2008 | F86: 28 | H86: 25 | L86: 2 | M86: 26.5
A87: 83 | B87: 122 | C87: =IF($B87="","",VLOOKUP($B87,Seznam!$A$4:$D$500,2)) -> Brož Jan | D87: =IF($B87="","",VLOOKUP($B87,Seznam!$A$4:$D$500,3)) -> Brušperk | E87: =IF($B87="","",VLOOKUP($B87,Seznam!$A$4:$D$500,4)) -> 2006 | F87: 30.4 | H87: 23 | L87: 2 | M87: 26.7
B88: 151 | C88: =IF($B88="","",VLOOKUP($B88,Seznam!$A$4:$D$500,2)) -> Ježovič Jan | D88: =IF($B88="","",VLOOKUP($B88,Seznam!$A$4:$D$500,3)) -> Český Těšín | E88: =IF($B88="","",VLOOKUP($B88,Seznam!$A$4:$D$500,4)) -> 2005 | J88: 27 | L88: 1 | M88: 27
A89: 85 | B89: 101 | C89: =IF($B89="","",VLOOKUP($B89,Seznam!$A$4:$D$500,2)) -> Pánková Tereza | D89: =IF($B89="","",VLOOKUP($B89,Seznam!$A$4:$D$500,3)) -> Kozlovice | E89: =IF($B89="","",VLOOKUP($B89,Seznam!$A$4:$D$500,4)) -> 2007 | F89: 31.2 | G89: 23 | H89: 27 | L89: 3 | M89: 27.1
A90: 86 | B90: 61 | C90: =IF($B90="","",VLOOKUP($B90,Seznam!$A$4:$D$500,2)) -> Šefl Josef | D90: =IF($B90="","",VLOOKUP($B90,Seznam!$A$4:$D$500,3)) -> Brušperk | E90: =IF($B90="","",VLOOKUP($B90,Seznam!$A$4:$D$500,4)) -> 2006 | F90: 27.7 | L90: 1 | M90: 27.7
A91: 87 | B91: 14 | C91: =IF($B91="","",VLOOKUP($B91,Seznam!$A$4:$D$500,2)) -> Káňa Tomáš | D91: =IF($B91="","",VLOOKUP($B91,Seznam!$A$4:$D$500,3)) -> SK Frýdlant | E91: =IF($B91="","",VLOOKUP($B91,Seznam!$A$4:$D$500,4)) -> 2007 | F91: 28 | L91: 1 | M91: 28
A92: 88 | B92: 143 | C92: =IF($B92="","",VLOOKUP($B92,Seznam!$A$4:$D$500,2)) -> Macíček Jan | D92: =IF($B92="","",VLOOKUP($B92,Seznam!$A$4:$D$500,3)) -> Mořkov | E92: =IF($B92="","",VLOOKUP($B92,Seznam!$A$4:$D$500,4)) -> 2004 | G92: 28 | L92: 1 | M92: 28
A93: 89 | B93: 134 | C93: =IF($B93="","",VLOOKUP($B93,Seznam!$A$4:$D$500,2)) -> Viňanský Pavel | D93: =IF($B93="","",VLOOKUP($B93,Seznam!$A$4:$D$500,3)) -> Brušperk | E93: =IF($B93="","",VLOOKUP($B93,Seznam!$A$4:$D$500,4)) -> 2008 | F93: 51 | G93: 20 | H93: 26 | I93: 25 | J93: 20 | L93: 5 | M93: 28.4
A94: 90 | B94: 125 | C94: =IF($B94="","",VLOOKUP($B94,Seznam!$A$4:$D$500,2)) -> Fabián Tobiáš | D94: =IF($B94="","",VLOOKUP($B94,Seznam!$A$4:$D$500,3)) -> TTC F-M | E94: =IF($B94="","",VLOOKUP($B94,Seznam!$A$4:$D$500,4)) -> 2011 | F94: 36 | G94: 21 | L94: 2 | M94: 28.5
A95: 91 | B95: 127 | C95: =IF($B95="","",VLOOKUP($B95,Seznam!$A$4:$D$500,2)) -> Voloch Jiří | D95: =IF($B95="","",VLOOKUP($B95,Seznam!$A$4:$D$500,3)) -> CDU Ostrava | E95: =IF($B95="","",VLOOKUP($B95,Seznam!$A$4:$D$500,4)) -> 2004 | F95: 29 | L95: 1 | M95: 29
A96: 92 | B96: 86 | C96: =IF($B96="","",VLOOKUP($B96,Seznam!$A$4:$D$500,2)) -> Fajkus Milan | D96: =IF($B96="","",VLOOKUP($B96,Seznam!$A$4:$D$500,3)) -> Frýdlant | E96: =IF($B96="","",VLOOKUP($B96,Seznam!$A$4:$D$500,4)) -> 2005 | F96: 29 | L96: 1 | M96: 29
A97: 93 | B97: 144 | C97: =IF($B97="","",VLOOKUP($B97,Seznam!$A$4:$D$500,2)) -> Kaiser František | D97: =IF($B97="","",VLOOKUP($B97,Seznam!$A$4:$D$500,3)) -> SK Frýdlant | E97: =IF($B97="","",VLOOKUP($B97,Seznam!$A$4:$D$500,4)) -> 2005 | G97: 29 | L97: 1 | M97: 29
A98: 94 | B98: 22 | C98: =IF($B98="","",VLOOKUP($B98,Seznam!$A$4:$D$500,2)) -> Byrtus David | D98: =IF($B98="","",VLOOKUP($B98,Seznam!$A$4:$D$500,3)) -> Český Těšín | E98: =IF($B98="","",VLOOKUP($B98,Seznam!$A$4:$D$500,4)) -> 2004 | I98: 29 | J98: 29 | L98: 2 | M98: 29
A99: 95 | B99: 123 | C99: =IF($B99="","",VLOOKUP($B99,Seznam!$A$4:$D$500,2)) -> Kočvara Lukáš | D99: =IF($B99="","",VLOOKUP($B99,Seznam!$A$4:$D$500,3)) -> CDU Ostrava | E99: =IF($B99="","",VLOOKUP($B99,Seznam!$A$4:$D$500,4)) -> 2006 | F99: 30 | L99: 1 | M99: 30
A100: 96 | B100: 91 | C100: =IF($B100="","",VLOOKUP($B100,Seznam!$A$4:$D$500,2)) -> Franěk Ondřej | D100: =IF($B100="","",VLOOKUP($B100,Seznam!$A$4:$D$500,3)) -> Frýdlant | E100: =IF($B100="","",VLOOKUP($B100,Seznam!$A$4:$D$500,4)) -> 2005 | F100: 30 | L100: 1 | M100: 30
A101: 97 | B101: 35 | C101: =IF($B101="","",VLOOKUP($B101,Seznam!$A$4:$D$500,2)) -> Moravec Václav | D101: =IF($B101="","",VLOOKUP($B101,Seznam!$A$4:$D$500,3)) -> Paskov | E101: =IF($B101="","",VLOOKUP($B101,Seznam!$A$4:$D$500,4)) -> 2008 | H101: 30 | L101: =IF(AND(F101="",G101="",H101="",I101="",J101="",K101=""),"",COUNTA(F101:K101)) -> 1 | M101: =IF(OR(F101>0,G101>0,H101>0,I101>0,J101>0,K101>0),ROUNDUP(SUM(F101:K101)/L101,1),"") -> 30
A102: 98 | B102: 24 | C102: =IF($B102="","",VLOOKUP($B102,Seznam!$A$4:$D$500,2)) -> Břenek Jiří | D102: =IF($B102="","",VLOOKUP($B102,Seznam!$A$4:$D$500,3)) -> Karviná | E102: =IF($B102="","",VLOOKUP($B102,Seznam!$A$4:$D$500,4)) -> 2009 | I102: 30 | L102: 1 | M102: 30
A103: 99 | B103: 25 | C103: =IF($B103="","",VLOOKUP($B103,Seznam!$A$4:$D$500,2)) -> Smetana Jan | D103: =IF($B103="","",VLOOKUP($B103,Seznam!$A$4:$D$500,3)) -> Třinec | E103: =IF($B103="","",VLOOKUP($B103,Seznam!$A$4:$D$500,4)) -> 2008 | I103: 32 | J103: 28 | L103: 2 | M103: 30
A104: 100 | B104: 73 | C104: =IF($B104="","",VLOOKUP($B104,Seznam!$A$4:$D$500,2)) -> Pščolka Michael | D104: =IF($B104="","",VLOOKUP($B104,Seznam!$A$4:$D$500,3)) -> Vendryně | E104: =IF($B104="","",VLOOKUP($B104,Seznam!$A$4:$D$500,4)) -> 2005 | F104: 30.5 | L104: 1 | M104: 30.5
A105: 101 | B105: 146 | C105: =IF($B105="","",VLOOKUP($B105,Seznam!$A$4:$D$500,2)) -> Polášek Daniel | D105: =IF($B105="","",VLOOKUP($B105,Seznam!$A$4:$D$500,3)) -> SK Frýdlant | E105: =IF($B105="","",VLOOKUP($B105,Seznam!$A$4:$D$500,4)) -> 2007 | G105: 31 | L105: 1 | M105: 31
A106: 102 | B106: 41 | C106: =IF($B106="","",VLOOKUP($B106,Seznam!$A$4:$D$500,2)) -> Břenková Kristýna | D106: =IF($B106="","",VLOOKUP($B106,Seznam!$A$4:$D$500,3)) -> Karviná | E106: =IF($B106="","",VLOOKUP($B106,Seznam!$A$4:$D$500,4)) -> 2009 | I106: 31 | L106: 1 | M106: 31
A107: 103 | B107: 152 | C107: =IF($B107="","",VLOOKUP($B107,Seznam!$A$4:$D$500,2)) -> Mniszak Lukáš | D107: =IF($B107="","",VLOOKUP($B107,Seznam!$A$4:$D$500,3)) -> Frýdlant | E107: =IF($B107="","",VLOOKUP($B107,Seznam!$A$4:$D$500,4)) -> 2004 | J107: 31 | L107: 1 | M107: 31
A108: 104 | B108: 147 | C108: =IF($B108="","",VLOOKUP($B108,Seznam!$A$4:$D$500,2)) -> Michna Oskar | D108: =IF($B108="","",VLOOKUP($B108,Seznam!$A$4:$D$500,3)) -> Paskov | E108: =IF($B108="","",VLOOKUP($B108,Seznam!$A$4:$D$500,4)) -> 2007 | G108: 32 | H108: 31 | J108: 32 | L108: 3 | M108: 31.7
A109: 105 | B109: 21 | C109: =IF($B109="","",VLOOKUP($B109,Seznam!$A$4:$D$500,2)) -> Dudková Jana | D109: =IF($B109="","",VLOOKUP($B109,Seznam!$A$4:$D$500,3)) -> TTC Frýdlant | E109: =IF($B109="","",VLOOKUP($B109,Seznam!$A$4:$D$500,4)) -> 2007 | F109: 33 | H109: 28 | I109: 34 | L109: 3 | M109: 31.7
A110: 106 | B110: 29 | C110: =IF($B110="","",VLOOKUP($B110,Seznam!$A$4:$D$500,2)) -> Karásek Kryštof | D110: =IF($B110="","",VLOOKUP($B110,Seznam!$A$4:$D$500,3)) -> TTC Frýdlant | E110: =IF($B110="","",VLOOKUP($B110,Seznam!$A$4:$D$500,4)) -> 2005 | H110: 29 | I110: 35 | L110: 2 | M110: 32
A111: 107 | B111: 108 | C111: =IF($B111="","",VLOOKUP($B111,Seznam!$A$4:$D$500,2)) -> Danemark Roman | D111: =IF($B111="","",VLOOKUP($B111,Seznam!$A$4:$D$500,3)) -> Ropice | E111: =IF($B111="","",VLOOKUP($B111,Seznam!$A$4:$D$500,4)) -> 2004 | F111: 32.4 | L111: 1 | M111: 32.4
A112: 108 | B112: 31 | C112: =IF($B112="","",VLOOKUP($B112,Seznam!$A$4:$D$500,2)) -> Strašák Filip | D112: =IF($B112="","",VLOOKUP($B112,Seznam!$A$4:$D$500,3)) -> Třinec | E112: =IF($B112="","",VLOOKUP($B112,Seznam!$A$4:$D$500,4)) -> 2007 | I112: 36 | J112: 29 | L112: 2 | M112: 32.5
A113: 109 | B113: 148 | C113: =IF($B113="","",VLOOKUP($B113,Seznam!$A$4:$D$500,2)) -> Bortel Kryštof | D113: =IF($B113="","",VLOOKUP($B113,Seznam!$A$4:$D$500,3)) -> CDU Ostrava | E113: =IF($B113="","",VLOOKUP($B113,Seznam!$A$4:$D$500,4)) -> 2009 | G113: 33 | L113: 1 | M113: 33
A114: 110 | B114: 56 | C114: =IF($B114="","",VLOOKUP($B114,Seznam!$A$4:$D$500,2)) -> Stodůlková Tereza | D114: =IF($B114="","",VLOOKUP($B114,Seznam!$A$4:$D$500,3)) -> SK Frýdlant | E114: =IF($B114="","",VLOOKUP($B114,Seznam!$A$4:$D$500,4)) -> 2008 | H114: 33 | L114: 1 | M114: 33
A115: 111 | B115: 153 | C115: =IF($B115="","",VLOOKUP($B115,Seznam!$A$4:$D$500,2)) -> Kocián Vojtěch | D115: =IF($B115="","",VLOOKUP($B115,Seznam!$A$4:$D$500,3)) -> Brušperk | E115: =IF($B115="","",VLOOKUP($B115,Seznam!$A$4:$D$500,4)) -> 2006 | J115: 33 | L115: 1 | M115: 33
A116: 112 | B116: 92 | C116: =IF($B116="","",VLOOKUP($B116,Seznam!$A$4:$D$500,2)) -> Papíková Elizabeth | D116: =IF($B116="","",VLOOKUP($B116,Seznam!$A$4:$D$500,3)) -> Frýdlant | E116: =IF($B116="","",VLOOKUP($B116,Seznam!$A$4:$D$500,4)) -> 2006 | F116: 33.5 | L116: 1 | M116: 33.5
A117: 113 | B117: 149 | C117: =IF($B117="","",VLOOKUP($B117,Seznam!$A$4:$D$500,2)) -> Menšík Martin | D117: =IF($B117="","",VLOOKUP($B117,Seznam!$A$4:$D$500,3)) -> SK Frýdlant | E117: =IF($B117="","",VLOOKUP($B117,Seznam!$A$4:$D$500,4)) -> 2010 | G117: 34 | L117: 1 | M117: 34
A118: 114 | B118: 154 | C118: =IF($B118="","",VLOOKUP($B118,Seznam!$A$4:$D$500,2)) -> Brudný Sebastián | D118: =IF($B118="","",VLOOKUP($B118,Seznam!$A$4:$D$500,3)) -> Český Těšín | E118: =IF($B118="","",VLOOKUP($B118,Seznam!$A$4:$D$500,4)) -> 2008 | J118: 34 | L118: 1 | M118: 34
A119: 115 | B119: 150 | C119: =IF($B119="","",VLOOKUP($B119,Seznam!$A$4:$D$500,2)) -> Filip Matouš | D119: =IF($B119="","",VLOOKUP($B119,Seznam!$A$4:$D$500,3)) -> SK Frýdlant | E119: =IF($B119="","",VLOOKUP($B119,Seznam!$A$4:$D$500,4)) -> 2010 | G119: 35 | L119: 1 | M119: 35
A120: 116 | B120: 155 | C120: =IF($B120="","",VLOOKUP($B120,Seznam!$A$4:$D$500,2)) -> Stavarský Jakub | D120: =IF($B120="","",VLOOKUP($B120,Seznam!$A$4:$D$500,3)) -> Český Těšín | E120: =IF($B120="","",VLOOKUP($B120,Seznam!$A$4:$D$500,4)) -> 2006 | J120: 35 | L120: 1 | M120: 35
A121: 117 | B121: 156 | C121: =IF($B121="","",VLOOKUP($B121,Seznam!$A$4:$D$500,2)) -> Hrabovský Adam | D121: =IF($B121="","",VLOOKUP($B121,Seznam!$A$4:$D$500,3)) -> Brušperk | E121: =IF($B121="","",VLOOKUP($B121,Seznam!$A$4:$D$500,4)) -> 2006 | J121: 36 | L121: 1 | M121: 36
A122: 118 | B122: 83 | C122: =IF($B122="","",VLOOKUP($B122,Seznam!$A$4:$D$500,2)) -> Tikal Tobiáš | D122: =IF($B122="","",VLOOKUP($B122,Seznam!$A$4:$D$500,3)) -> TTC F-M | E122: =IF($B122="","",VLOOKUP($B122,Seznam!$A$4:$D$500,4)) -> 2008 | F122: 36.5 | L122: 1 | M122: 36.5
A123: 119 | B123: 136 | C123: =IF($B123="","",VLOOKUP($B123,Seznam!$A$4:$D$500,2)) -> Špaček Michal | D123: =IF($B123="","",VLOOKUP($B123,Seznam!$A$4:$D$500,3)) -> Brušperk | E123: =IF($B123="","",VLOOKUP($B123,Seznam!$A$4:$D$500,4)) -> 2007 | F123: 53 | G123: 27 | H123: 31 | L123: 3 | M123: 37
A124: 120 | B124: 46 | C124: =IF($B124="","",VLOOKUP($B124,Seznam!$A$4:$D$500,2)) -> Kotas Jakub | D124: =IF($B124="","",VLOOKUP($B124,Seznam!$A$4:$D$500,3)) -> Třinec | E124: =IF($B124="","",VLOOKUP($B124,Seznam!$A$4:$D$500,4)) -> 2008 | I124: 37 | L124: 1 | M124: 37
A125: 121 | B125: 157 | C125: =IF($B125="","",VLOOKUP($B125,Seznam!$A$4:$D$500,2)) -> Zvrtek Lukáš | D125: =IF($B125="","",VLOOKUP($B125,Seznam!$A$4:$D$500,3)) -> Třinec | E125: =IF($B125="","",VLOOKUP($B125,Seznam!$A$4:$D$500,4)) -> 2007 | J125: 37 | L125: 1 | M125: 37
A126: 122 | B126: 53 | C126: =IF($B126="","",VLOOKUP($B126,Seznam!$A$4:$D$500,2)) -> Pustka Adam | D126: =IF($B126="","",VLOOKUP($B126,Seznam!$A$4:$D$500,3)) -> Kozlovice | E126: =IF($B126="","",VLOOKUP($B126,Seznam!$A$4:$D$500,4)) -> 2008 | I126: 33 | J126: 42 | L126: 2 | M126: 37.5
A127: 123 | B127: 51 | C127: =IF($B127="","",VLOOKUP($B127,Seznam!$A$4:$D$500,2)) -> Svoboda Vojtěch | D127: =IF($B127="","",VLOOKUP($B127,Seznam!$A$4:$D$500,3)) -> TTC F-M | E127: =IF($B127="","",VLOOKUP($B127,Seznam!$A$4:$D$500,4)) -> 2006 | F127: 37.5 | L127: 1 | M127: 37.5
A128: 124 | B128: 8 | C128: =IF($B128="","",VLOOKUP($B128,Seznam!$A$4:$D$500,2)) -> Kociánová Natálie | D128: =IF($B128="","",VLOOKUP($B128,Seznam!$A$4:$D$500,3)) -> TTC Frýdlant | E128: =IF($B128="","",VLOOKUP($B128,Seznam!$A$4:$D$500,4)) -> 2009 | F128: 35.3 | J128: 40 | L128: 2 | M128: 37.7
A129: 125 | B129: 158 | C129: =IF($B129="","",VLOOKUP($B129,Seznam!$A$4:$D$500,2)) -> Tomalík Ondřej | D129: =IF($B129="","",VLOOKUP($B129,Seznam!$A$4:$D$500,3)) -> TTC Frýdlant | E129: =IF($B129="","",VLOOKUP($B129,Seznam!$A$4:$D$500,4)) -> 2009 | J129: 38 | L129: 1 | M129: 38
A130: 126 | B130: 159 | C130: =IF($B130="","",VLOOKUP($B130,Seznam!$A$4:$D$500,2)) -> Kajfosz Jakub | D130: =IF($B130="","",VLOOKUP($B130,Seznam!$A$4:$D$500,3)) -> Třinec | E130: =IF($B130="","",VLOOKUP($B130,Seznam!$A$4:$D$500,4)) -> 2006 | J130: 39 | L130: 1 | M130: 39
A131: 127 | B131: 50 | C131: =IF($B131="","",VLOOKUP($B131,Seznam!$A$4:$D$500,2)) -> Kisiala David | D131: =IF($B131="","",VLOOKUP($B131,Seznam!$A$4:$D$500,3)) -> Český Těšín | E131: =IF($B131="","",VLOOKUP($B131,Seznam!$A$4:$D$500,4)) -> 2006 | J131: 41 | L131: 1 | M131: 41
A132: 128 | B132: 161 | C132: =IF($B132="","",VLOOKUP($B132,Seznam!$A$4:$D$500,2)) -> Lepík František | D132: =IF($B132="","",VLOOKUP($B132,Seznam!$A$4:$D$500,3)) -> Kozlovice | E132: =IF($B132="","",VLOOKUP($B132,Seznam!$A$4:$D$500,4)) -> 2008 | J132: 43 | L132: 1 | M132: 43
A133: 129 | B133: 162 | C133: =IF($B133="","",VLOOKUP($B133,Seznam!$A$4:$D$500,2)) -> Žáček Jakub | D133: =IF($B133="","",VLOOKUP($B133,Seznam!$A$4:$D$500,3)) -> Kozlovice | E133: =IF($B133="","",VLOOKUP($B133,Seznam!$A$4:$D$500,4)) -> 2008 | J133: 44 | L133: =IF(AND(F133="",G133="",H133="",I133="",J133="",K133=""),"",COUNTA(F133:K133)) -> 1 | M133: =IF(OR(F133>0,G133>0,H133>0,I133>0,J133>0,K133>0),ROUNDUP(SUM(F133:K133)/L133,1),"") -> 44
A134: 130 | B134: 163 | C134: =IF($B134="","",VLOOKUP($B134,Seznam!$A$4:$D$500,2)) -> Vitt Tomáš | D134: =IF($B134="","",VLOOKUP($B134,Seznam!$A$4:$D$500,3)) -> Kozlovice | E134: =IF($B134="","",VLOOKUP($B134,Seznam!$A$4:$D$500,4)) -> 2008 | J134: 45 | L134: 1 | M134: 45
A135: 131 | B135: 164 | C135: =IF($B135="","",VLOOKUP($B135,Seznam!$A$4:$D$500,2)) -> Rakowski Jan | D135: =IF($B135="","",VLOOKUP($B135,Seznam!$A$4:$D$500,3)) -> Třinec | E135: =IF($B135="","",VLOOKUP($B135,Seznam!$A$4:$D$500,4)) -> 2006 | J135: 46 | L135: 1 | M135: 46
A136: 132 | B136: 165 | C136: =IF($B136="","",VLOOKUP($B136,Seznam!$A$4:$D$500,2)) -> Turek Dalibor | D136: =IF($B136="","",VLOOKUP($B136,Seznam!$A$4:$D$500,3)) -> ? | E136: =IF($B136="","",VLOOKUP($B136,Seznam!$A$4:$D$500,4)) -> ? | J136: 47 | L136: 1 | M136: 47
A137: 133 | B137: 160 | C137: =IF($B137="","",VLOOKUP($B137,Seznam!$A$4:$D$500,2)) -> Pánek Michal | D137: =IF($B137="","",VLOOKUP($B137,Seznam!$A$4:$D$500,3)) -> Český Těšín | E137: =IF($B137="","",VLOOKUP($B137,Seznam!$A$4:$D$500,4)) -> 2007 | J137: 48 | L137: 1 | M137: 48
A138: 134
A139: 135
A140: 136
A141: 137
A142: 138
A143: 139
A144: 140
A145: 141
A146: 142
A147: 143
A148: 144
A149: 145
A150: 146
A151: 147
A152: 148
A153: 149
A154: 150

Sheet průběžné bodové pořadí
A1: Průběžné bodové pořadí v jednotlivých kategoriích
C2: První 3 v každé kat. obdrží věcné ceny
C3: 1.místo - 5 Bodů, 2.místo - 4 body, 3.místo - 3 body, 4.místo - 2 body, 5.místo - 1 bod.
C4: Počítají se 4 nejlepší výsledky
F5: 1 | G5: 2 | H5: 3 | I5: 4 | J5: 5 | K5: 6
C6: Dorost | F6: Fryd. | G6: Brušp. | H6: ČT | I6: ČT | J6: Fryd. | L6: počet turnajů | M6: celkem bodů
A7: poř. | B7: č.h. | C7: jméno | D7: oddíl/klub | E7: nar.
A8: 1. | B8: 59 | C8: =IF($B8="","",VLOOKUP($B8,Seznam!$A$4:$K$500,2)) -> Szotkowski Jan | D8: =IF($B8="","",VLOOKUP($B8,Seznam!$A$4:$K$500,3)) -> Třinec | E8: =IF($B8="","",VLOOKUP($B8,Seznam!$A$4:$K$500,4)) -> 2006 | H8: 5 | I8: 5 | L8: =IF(AND(J8="",F8="",G8="",H8="",I8=""),"",COUNTA(F8:J8)) -> 2 | M8: =IF(B8="",0,SUM(IF(ISERROR(LARGE(F8:J8,1)),0,LARGE(F8:J8,1)),IF(ISERROR(LARGE(F8:J8,2)),0,LARGE(F8:J8,2)),IF(ISERROR(LARGE(F8:J8,3)),0,LARGE(F8:J8,3)),IF(ISERROR(LARGE(F8:J8,4)),0,LARGE(F8:J8,4)))) -> 10
A9: 2. | B9: 13 | C9: =IF($B9="","",VLOOKUP($B9,Seznam!$A$4:$K$500,2)) -> Neuwirth Jaroslav | D9: =IF($B9="","",VLOOKUP($B9,Seznam!$A$4:$K$500,3)) -> Brušperk | E9: =IF($B9="","",VLOOKUP($B9,Seznam!$A$4:$K$500,4)) -> 2002 | F9: 5 | G9: 3 | L9: =IF(AND(J9="",F9="",G9="",H9="",I9=""),"",COUNTA(F9:J9)) -> 2 | M9: =IF(B9="",0,SUM(IF(ISERROR(LARGE(F9:J9,1)),0,LARGE(F9:J9,1)),IF(ISERROR(LARGE(F9:J9,2)),0,LARGE(F9:J9,2)),IF(ISERROR(LARGE(F9:J9,3)),0,LARGE(F9:J9,3)),IF(ISERROR(LARGE(F9:J9,4)),0,LARGE(F9:J9,4)))) -> 8
A10: 3. | B10: 38 | C10: =IF($B10="","",VLOOKUP($B10,Seznam!$A$4:$K$500,2)) -> Zvrtek Jan | D10: =IF($B10="","",VLOOKUP($B10,Seznam!$A$4:$K$500,3)) -> Návsí | E10: =IF($B10="","",VLOOKUP($B10,Seznam!$A$4:$K$500,4)) -> 2004 | H10: 4 | I10: 4 | L10: =IF(AND(J10="",F10="",G10="",H10="",I10=""),"",COUNTA(F10:J10)) -> 2 | M10: =IF(B10="",0,SUM(IF(ISERROR(LARGE(F10:J10,1)),0,LARGE(F10:J10,1)),IF(ISERROR(LARGE(F10:J10,2)),0,LARGE(F10:J10,2)),IF(ISERROR(LARGE(F10:J10,3)),0,LARGE(F10:J10,3)),IF(ISERROR(LARGE(F10:J10,4)),0,LARGE(F10:J10,4)))) -> 8
A11: 4. | B11: 27 | C11: =IF($B11="","",VLOOKUP($B11,Seznam!$A$4:$D$500,2)) -> Hýl Jakub | D11: =IF($B11="","",VLOOKUP($B11,Seznam!$A$4:$K$500,3)) -> Brušperk | E11: =IF($B11="","",VLOOKUP($B11,Seznam!$A$4:$K$500,4)) -> 2006 | F11: 4 | G11: 2 | L11: =IF(AND(J11="",F11="",G11="",H11="",I11="",K11),"",COUNTA(F11:K11)) -> 2 | M11: =IF(B11="",0,SUM(IF(ISERROR(LARGE(F11:K11,1)),0,LARGE(F11:K11,1)),IF(ISERROR(LARGE(F11:K11,2)),0,LARGE(F11:K11,2)),IF(ISERROR(LARGE(F11:K11,3)),0,LARGE(F11:K11,3)),IF(ISERROR(LARGE(F11:K11,4)),0,LARGE(F11:K11,4)))) -> 6
A12: 5. | B12: 95 | C12: =IF($B12="","",VLOOKUP($B12,Seznam!$A$4:$K$500,2)) -> Ondračka Adam | D12: =IF($B12="","",VLOOKUP($B12,Seznam!$A$4:$K$500,3)) -> Frýdlant | E12: =IF($B12="","",VLOOKUP($B12,Seznam!$A$4:$K$500,4)) -> 2007 | F12: 3 | H12: 3 | L12: =IF(AND(J12="",F12="",G12="",H12="",I12=""),"",COUNTA(F12:J12)) -> 2 | M12: =IF(B12="",0,SUM(IF(ISERROR(LARGE(F12:J12,1)),0,LARGE(F12:J12,1)),IF(ISERROR(LARGE(F12:J12,2)),0,LARGE(F12:J12,2)),IF(ISERROR(LARGE(F12:J12,3)),0,LARGE(F12:J12,3)),IF(ISERROR(LARGE(F12:J12,4)),0,LARGE(F12:J12,4)))) -> 6
A13: 6. | B13: 20 | C13: =IF($B13="","",VLOOKUP($B13,Seznam!$A$4:$K$500,2)) -> Mrowetz Bruno | D13: =IF($B13="","",VLOOKUP($B13,Seznam!$A$4:$K$500,3)) -> Brušperk | E13: =IF($B13="","",VLOOKUP($B13,Seznam!$A$4:$K$500,4)) -> 2004 | G13: 5 | L13: 1 | M13: 5
A14: 7. | B14: 5 | C14: =IF($B14="","",VLOOKUP($B14,Seznam!$A$4:$K$500,2)) -> Janečka Martin | D14: =IF($B14="","",VLOOKUP($B14,Seznam!$A$4:$K$500,3)) -> Brušperk | E14: =IF($B14="","",VLOOKUP($B14,Seznam!$A$4:$K$500,4)) -> 2002 | G14: 4 | L14: 1 | M14: 4
A15: 8. | B15: 97 | C15: =IF($B15="","",VLOOKUP($B15,Seznam!$A$4:$K$500,2)) -> Bakota Adam | D15: =IF($B15="","",VLOOKUP($B15,Seznam!$A$4:$K$500,3)) -> Frýdlant | E15: =IF($B15="","",VLOOKUP($B15,Seznam!$A$4:$K$500,4)) -> 2006 | G15: 1 | H15: 2 | L15: 2 | M15: 3
A16: 9. | B16: 107 | C16: =IF($B16="","",VLOOKUP($B16,Seznam!$A$4:$K$500,2)) -> Jokiel Patrik | D16: =IF($B16="","",VLOOKUP($B16,Seznam!$A$4:$K$500,3)) -> Český Těšín | E16: =IF($B16="","",VLOOKUP($B16,Seznam!$A$4:$K$500,4)) -> 2001 | I16: 3 | L16: 1 | M16: 3
A17: 10. | B17: 9 | C17: =IF($B17="","",VLOOKUP($B17,Seznam!$A$4:$K$500,2)) -> Šlachta Prokop Antonín | D17: =IF($B17="","",VLOOKUP($B17,Seznam!$A$4:$K$500,3)) -> Frýdek - Místek | E17: =IF($B17="","",VLOOKUP($B17,Seznam!$A$4:$K$500,4)) -> 2006 | F17: 2 | L17: 1 | M17: 2
A18: 11. | B18: 138 | C18: =IF($B18="","",VLOOKUP($B18,Seznam!$A$4:$K$500,2)) -> Halfar Jan | D18: =IF($B18="","",VLOOKUP($B18,Seznam!$A$4:$K$500,3)) -> Český Těšín | E18: =IF($B18="","",VLOOKUP($B18,Seznam!$A$4:$K$500,4)) -> 2005 | I18: 2 | L18: 1 | M18: 2
A19: 12. | B19: 82 | C19: =IF($B19="","",VLOOKUP($B19,Seznam!$A$4:$K$500,2)) -> Pánek Jakub | D19: =IF($B19="","",VLOOKUP($B19,Seznam!$A$4:$K$500,3)) -> Kozlovice | E19: =IF($B19="","",VLOOKUP($B19,Seznam!$A$4:$K$500,4)) -> 2005 | F19: 1 | L19: 1 | M19: 1
A20: 13. | B20: 121 | C20: =IF($B20="","",VLOOKUP($B20,Seznam!$A$4:$K$500,2)) -> Kotajný Jakub | D20: =IF($B20="","",VLOOKUP($B20,Seznam!$A$4:$K$500,3)) -> Vendryně | E20: =IF($B20="","",VLOOKUP($B20,Seznam!$A$4:$K$500,4)) -> 2003 | H20: 1 | L20: 1 | M20: 1
A21: 14. | B21: 98 | C21: =IF($B21="","",VLOOKUP($B21,Seznam!$A$4:$K$500,2)) -> Hamar Tomáš | D21: =IF($B21="","",VLOOKUP($B21,Seznam!$A$4:$K$500,3)) -> Brušperk | E21: =IF($B21="","",VLOOKUP($B21,Seznam!$A$4:$K$500,4)) -> 2004 | I21: 1 | L21: 1 | M21: 1
A22: 15. | C22: =IF($B22="","",VLOOKUP($B22,Seznam!$A$4:$K$500,2)) ->  | D22: =IF($B22="","",VLOOKUP($B22,Seznam!$A$4:$K$500,3)) ->  | E22: =IF($B22="","",VLOOKUP($B22,Seznam!$A$4:$K$500,4)) ->  | M22: 0
A23: 16. | C23: =IF($B23="","",VLOOKUP($B23,Seznam!$A$4:$K$500,2)) ->  | D23: =IF($B23="","",VLOOKUP($B23,Seznam!$A$4:$K$500,3)) ->  | E23: =IF($B23="","",VLOOKUP($B23,Seznam!$A$4:$K$500,4)) ->  | M23: 0
A24: 17. | C24: =IF($B24="","",VLOOKUP($B24,Seznam!$A$4:$K$500,2)) ->  | D24: =IF($B24="","",VLOOKUP($B24,Seznam!$A$4:$K$500,3)) ->  | E24: =IF($B24="","",VLOOKUP($B24,Seznam!$A$4:$K$500,4)) ->  | M24: 0
A25: 18. | C25: =IF($B25="","",VLOOKUP($B25,Seznam!$A$4:$K$500,2)) ->  | D25: =IF($B25="","",VLOOKUP($B25,Seznam!$A$4:$K$500,3)) ->  | E25: =IF($B25="","",VLOOKUP($B25,Seznam!$A$4:$K$500,4)) ->  | M25: 0
A26: 19. | C26: =IF($B26="","",VLOOKUP($B26,Seznam!$A$4:$K$500,2)) ->  | D26: =IF($B26="","",VLOOKUP($B26,Seznam!$A$4:$K$500,3)) ->  | E26: =IF($B26="","",VLOOKUP($B26,Seznam!$A$4:$K$500,4)) ->  | M26: 0
A27: 20. | C27: =IF($B27="","",VLOOKUP($B27,Seznam!$A$4:$K$500,2)) ->  | D27: =IF($B27="","",VLOOKUP($B27,Seznam!$A$4:$K$500,3)) ->  | E27: =IF($B27="","",VLOOKUP($B27,Seznam!$A$4:$K$500,4)) ->  | M27: 0
A28: 21 | C28: =IF($B28="","",VLOOKUP($B28,Seznam!$A$4:$K$500,2)) ->  | D28: =IF($B28="","",VLOOKUP($B28,Seznam!$A$4:$K$500,3)) ->  | E28: =IF($B28="","",VLOOKUP($B28,Seznam!$A$4:$K$500,4)) ->  | M28: 0
A29: 22. | C29: =IF($B29="","",VLOOKUP($B29,Seznam!$A$4:$K$500,2)) ->  | D29: =IF($B29="","",VLOOKUP($B29,Seznam!$A$4:$K$500,3)) ->  | E29: =IF($B29="","",VLOOKUP($B29,Seznam!$A$4:$K$500,4)) ->  | M29: 0
C31: Starší žáci
A32: poř. | B32: č.h. | C32: jméno | D32: oddíl/klub | E32: nar. | F32: =F6 -> Fryd. | G32: Brušp. | H32: ČT | I32: ČT | J32: Fryd. | K32: 0 | L32: počet turnajů | M32: celkem bodů
A33: 1. | B33: 38 | C33: =IF($B33="","",VLOOKUP($B33,Seznam!$A$4:$K$500,2)) -> Zvrtek Jan | D33: =IF($B33="","",VLOOKUP($B33,Seznam!$A$4:$K$500,3)) -> Návsí | E33: =IF($B33="","",VLOOKUP($B33,Seznam!$A$4:$K$500,4)) -> 2004 | H33: 5 | I33: 5 | L33: =IF(AND(J33="",F33="",G33="",H33="",I33="",K33),"",COUNTA(F33:K33)) -> 2 | M33: =IF(B33="",0,SUM(IF(ISERROR(LARGE(F33:K33,1)),0,LARGE(F33:K33,1)),IF(ISERROR(LARGE(F33:K33,2)),0,LARGE(F33:K33,2)),IF(ISERROR(LARGE(F33:K33,3)),0,LARGE(F33:K33,3)),IF(ISERROR(LARGE(F33:K33,4)),0,LARGE(F33:K33,4)))) -> 10
A34: 2. | B34: 27 | C34: =IF($B34="","",VLOOKUP($B34,Seznam!$A$4:$K$500,2)) -> Hýl Jakub | D34: =IF($B34="","",VLOOKUP($B34,Seznam!$A$4:$K$500,3)) -> Brušperk | E34: =IF($B34="","",VLOOKUP($B34,Seznam!$A$4:$K$500,4)) -> 2006 | F34: 5 | G34: 4 | L34: 2 | M34: 9
A35: 3. | B35: 95 | C35: =IF($B35="","",VLOOKUP($B35,Seznam!$A$4:$K$500,2)) -> Ondračka Adam | D35: =IF($B35="","",VLOOKUP($B35,Seznam!$A$4:$K$500,3)) -> Frýdlant | E35: =IF($B35="","",VLOOKUP($B35,Seznam!$A$4:$K$500,4)) -> 2007 | F35: 4 | H35: 4 | L35: 2 | M35: 8
A36: 4. | B36: 97 | C36: =IF($B36="","",VLOOKUP($B36,Seznam!$A$4:$K$500,2)) -> Bakota Adam | D36: =IF($B36="","",VLOOKUP($B36,Seznam!$A$4:$K$500,3)) -> Frýdlant | E36: =IF($B36="","",VLOOKUP($B36,Seznam!$A$4:$K$500,4)) -> 2006 | G36: 3 | H36: 3 | L36: 2 | M36: 6
A37: 5. | B37: 98 | C37: =IF($B37="","",VLOOKUP($B37,Seznam!$A$4:$K$500,2)) -> Hamar Tomáš | D37: =IF($B37="","",VLOOKUP($B37,Seznam!$A$4:$K$500,3)) -> Brušperk | E37: =IF($B37="","",VLOOKUP($B37,Seznam!$A$4:$K$500,4)) -> 2004 | F37: 1 | G37: 2 | I37: 3 | L37: 3 | M37: 6
A38: 6. | B38: 20 | C38: =IF($B38="","",VLOOKUP($B38,Seznam!$A$4:$K$500,2)) -> Mrowetz Bruno | D38: =IF($B38="","",VLOOKUP($B38,Seznam!$A$4:$K$500,3)) -> Brušperk | E38: =IF($B38="","",VLOOKUP($B38,Seznam!$A$4:$K$500,4)) -> 2004 | G38: 5 | L38: 1 | M38: 5
A39: 7. | B39: 138 | C39: =IF($B39="","",VLOOKUP($B39,Seznam!$A$4:$K$500,2)) -> Halfar Jan | D39: =IF($B39="","",VLOOKUP($B39,Seznam!$A$4:$K$500,3)) -> Český Těšín | E39: =IF($B39="","",VLOOKUP($B39,Seznam!$A$4:$K$500,4)) -> 2005 | I39: 4 | L39: 1 | M39: 4
A40: 8. | B40: 9 | C40: =IF($B40="","",VLOOKUP($B40,Seznam!$A$4:$K$500,2)) -> Šlachta Prokop Antonín | D40: =IF($B40="","",VLOOKUP($B40,Seznam!$A$4:$K$500,3)) -> Frýdek - Místek | E40: =IF($B40="","",VLOOKUP($B40,Seznam!$A$4:$K$500,4)) -> 2006 | F40: 3 | L40: 1 | M40: 3
A41: 9. | B41: 82 | C41: =IF($B41="","",VLOOKUP($B41,Seznam!$A$4:$K$500,2)) -> Pánek Jakub | D41: =IF($B41="","",VLOOKUP($B41,Seznam!$A$4:$K$500,3)) -> Kozlovice | E41: =IF($B41="","",VLOOKUP($B41,Seznam!$A$4:$K$500,4)) -> 2005 | F41: 2 | G41: 1 | L41: 2 | M41: 3
A42: 10. | B42: 39 | C42: =IF($B42="","",VLOOKUP($B42,Seznam!$A$4:$K$500,2)) -> Walek Adrian | D42: =IF($B42="","",VLOOKUP($B42,Seznam!$A$4:$K$500,3)) -> Návsí | E42: =IF($B42="","",VLOOKUP($B42,Seznam!$A$4:$K$500,4)) -> 2005 | H42: 2 | L42: 1 | M42: 2
A43: 11. | B43: 118 | C43: =IF($B43="","",VLOOKUP($B43,Seznam!$A$4:$K$500,2)) -> Krucina Vojtěch | D43: =IF($B43="","",VLOOKUP($B43,Seznam!$A$4:$K$500,3)) -> TJ Sokol Nýdek | E43: =IF($B43="","",VLOOKUP($B43,Seznam!$A$4:$K$500,4)) -> 2005 | I43: 2 | L43: 1 | M43: 2
A44: 12. | B44: 65 | C44: =IF($B44="","",VLOOKUP($B44,Seznam!$A$4:$K$500,2)) -> Stramová Eliška | D44: =IF($B44="","",VLOOKUP($B44,Seznam!$A$4:$K$500,3)) -> Frýdlant | E44: =IF($B44="","",VLOOKUP($B44,Seznam!$A$4:$K$500,4)) -> 2005 | H44: 1 | L44: 1 | M44: 1
A45: 13. | B45: 48 | C45: =IF($B45="","",VLOOKUP($B45,Seznam!$A$4:$K$500,2)) -> Michna Viktor | D45: =IF($B45="","",VLOOKUP($B45,Seznam!$A$4:$K$500,3)) -> Paskov | E45: =IF($B45="","",VLOOKUP($B45,Seznam!$A$4:$K$500,4)) -> 2004 | I45: 1 | L45: 1 | M45: 1
A46: 14. | C46: =IF($B46="","",VLOOKUP($B46,Seznam!$A$4:$K$500,2)) ->  | D46: =IF($B46="","",VLOOKUP($B46,Seznam!$A$4:$K$500,3)) ->  | E46: =IF($B46="","",VLOOKUP($B46,Seznam!$A$4:$K$500,4)) ->  | M46: 0
A47: 15. | C47: =IF($B47="","",VLOOKUP($B47,Seznam!$A$4:$K$500,2)) ->  | D47: =IF($B47="","",VLOOKUP($B47,Seznam!$A$4:$K$500,3)) ->  | E47: =IF($B47="","",VLOOKUP($B47,Seznam!$A$4:$K$500,4)) ->  | M47: 0
A48: 16. | C48: =IF($B48="","",VLOOKUP($B48,Seznam!$A$4:$K$500,2)) ->  | D48: =IF($B48="","",VLOOKUP($B48,Seznam!$A$4:$K$500,3)) ->  | E48: =IF($B48="","",VLOOKUP($B48,Seznam!$A$4:$K$500,4)) ->  | M48: 0
A49: 17. | C49: =IF($B49="","",VLOOKUP($B49,Seznam!$A$4:$K$500,2)) ->  | D49: =IF($B49="","",VLOOKUP($B49,Seznam!$A$4:$K$500,3)) ->  | E49: =IF($B49="","",VLOOKUP($B49,Seznam!$A$4:$K$500,4)) ->  | M49: 0
A50: 18. | C50: =IF($B50="","",VLOOKUP($B50,Seznam!$A$4:$K$500,2)) ->  | D50: =IF($B50="","",VLOOKUP($B50,Seznam!$A$4:$K$500,3)) ->  | E50: =IF($B50="","",VLOOKUP($B50,Seznam!$A$4:$K$500,4)) ->  | M50: 0
A51: 19. | C51: =IF($B51="","",VLOOKUP($B51,Seznam!$A$4:$K$500,2)) ->  | D51: =IF($B51="","",VLOOKUP($B51,Seznam!$A$4:$K$500,3)) ->  | E51: =IF($B51="","",VLOOKUP($B51,Seznam!$A$4:$K$500,4)) ->  | M51: 0
A52: 20. | C52: =IF($B52="","",VLOOKUP($B52,Seznam!$A$4:$K$500,2)) ->  | D52: =IF($B52="","",VLOOKUP($B52,Seznam!$A$4:$K$500,3)) ->  | E52: =IF($B52="","",VLOOKUP($B52,Seznam!$A$4:$K$500,4)) ->  | M52: 0
A53: 21. | C53: =IF($B53="","",VLOOKUP($B53,Seznam!$A$4:$K$500,2)) ->  | D53: =IF($B53="","",VLOOKUP($B53,Seznam!$A$4:$K$500,3)) ->  | E53: =IF($B53="","",VLOOKUP($B53,Seznam!$A$4:$K$500,4)) ->  | M53: 0
A54: 22.
C56: Mladší žáci
A57: poř. | B57: č.h. | C57: jméno | D57: oddíl/klub | E57: nar. | F57: =F6 -> Fryd. | G57: Brušp. | H57: ČT | I57: ČT | J57: Fryd. | K57: 0 | L57: počet turnajů | M57: celkem bodů
A58: 1. | B58: 27 | C58: =IF($B58="","",VLOOKUP($B58,Seznam!$A$4:$K$500,2)) -> Hýl Jakub | D58: =IF($B58="","",VLOOKUP($B58,Seznam!$A$4:$K$500,3)) -> Brušperk | E58: =IF($B58="","",VLOOKUP($B58,Seznam!$A$4:$K$500,4)) -> 2006 | F58: 5 | G58: 5 | L58: =IF(AND(J58="",F58="",G58="",H58="",I58="",K58=""),"",COUNTA(F58:K58)) -> 2 | M58: =IF(B58="",0,SUM(IF(ISERROR(LARGE(F58:K58,1)),0,LARGE(F58:K58,1)),IF(ISERROR(LARGE(F58:K58,2)),0,LARGE(F58:K58,2)),IF(ISERROR(LARGE(F58:K58,3)),0,LARGE(F58:K58,3)),IF(ISERROR(LARGE(F58:K58,4)),0,LARGE(F58:K58,4)))) -> 10
A59: 2. | B59: 62 | C59: =IF($B59="","",VLOOKUP($B59,Seznam!$A$4:$K$500,2)) -> Neuwirth Ondřej | D59: =IF($B59="","",VLOOKUP($B59,Seznam!$A$4:$K$500,3)) -> Brušperk | E59: =IF($B59="","",VLOOKUP($B59,Seznam!$A$4:$K$500,4)) -> 2006 | F59: 1 | G59: 2 | H59: 2 | I59: 5 | L59: 4 | M59: 10
A60: 3. | B60: 95 | C60: =IF($B60="","",VLOOKUP($B60,Seznam!$A$4:$K$500,2)) -> Ondračka Adam | D60: =IF($B60="","",VLOOKUP($B60,Seznam!$A$4:$K$500,3)) -> Frýdlant | E60: =IF($B60="","",VLOOKUP($B60,Seznam!$A$4:$K$500,4)) -> 2007 | F60: 4 | H60: 5 | L60: 2 | M60: 9
A61: 4. | B61: 65 | C61: =IF($B61="","",VLOOKUP($B61,Seznam!$A$4:$K$500,2)) -> Stramová Eliška | D61: =IF($B61="","",VLOOKUP($B61,Seznam!$A$4:$K$500,3)) -> Frýdlant | E61: =IF($B61="","",VLOOKUP($B61,Seznam!$A$4:$K$500,4)) -> 2005 | F61: 2 | G61: 3 | H61: 3 | L61: 3 | M61: 8
A62: 5. | B62: 97 | C62: =IF($B62="","",VLOOKUP($B62,Seznam!$A$4:$K$500,2)) -> Bakota Adam | D62: =IF($B62="","",VLOOKUP($B62,Seznam!$A$4:$K$500,3)) -> Frýdlant | E62: =IF($B62="","",VLOOKUP($B62,Seznam!$A$4:$K$500,4)) -> 2006 | G62: 4 | H62: 4 | L62: 2 | M62: 8
A63: 6. | B63: 17 | C63: =IF($B63="","",VLOOKUP($B63,Seznam!$A$4:$K$500,2)) -> Michnová Marika | D63: =IF($B63="","",VLOOKUP($B63,Seznam!$A$4:$K$500,3)) -> SK Frýdlant | E63: =IF($B63="","",VLOOKUP($B63,Seznam!$A$4:$K$500,4)) -> 2008 | G63: 1 | I63: 4 | L63: 2 | M63: 5
A64: 7. | B64: 9 | C64: =IF($B64="","",VLOOKUP($B64,Seznam!$A$4:$K$500,2)) -> Šlachta Prokop Antonín | D64: =IF($B64="","",VLOOKUP($B64,Seznam!$A$4:$K$500,3)) -> Frýdek - Místek | E64: =IF($B64="","",VLOOKUP($B64,Seznam!$A$4:$K$500,4)) -> 2006 | F64: 3 | L64: 1 | M64: 3
A65: 8. | B65: 58 | C65: =IF($B65="","",VLOOKUP($B65,Seznam!$A$4:$K$500,2)) -> Chudíková Nikol | D65: =IF($B65="","",VLOOKUP($B65,Seznam!$A$4:$K$500,3)) -> Komorní Lhotka | E65: =IF($B65="","",VLOOKUP($B65,Seznam!$A$4:$K$500,4)) -> 2007 | I65: 3 | L65: 1 | M65: 3
A66: 9. | B66: 56 | C66: =IF($B66="","",VLOOKUP($B66,Seznam!$A$4:$K$500,2)) -> Stodůlková Tereza | D66: =IF($B66="","",VLOOKUP($B66,Seznam!$A$4:$K$500,3)) -> SK Frýdlant | E66: =IF($B66="","",VLOOKUP($B66,Seznam!$A$4:$K$500,4)) -> 2008 | I66: 2 | L66: 1 | M66: 2
A67: 10. | B67: 132 | C67: =IF($B67="","",VLOOKUP($B67,Seznam!$A$4:$K$500,2)) -> Heczko David | D67: =IF($B67="","",VLOOKUP($B67,Seznam!$A$4:$K$500,3)) -> Návsí | E67: =IF($B67="","",VLOOKUP($B67,Seznam!$A$4:$K$500,4)) -> 2007 | H67: 1 | L67: 1 | M67: 1
A68: 11. | B68: 1 | C68: =IF($B68="","",VLOOKUP($B68,Seznam!$A$4:$K$500,2)) -> Jančák Richard | D68: =IF($B68="","",VLOOKUP($B68,Seznam!$A$4:$K$500,3)) -> Brušperk | E68: =IF($B68="","",VLOOKUP($B68,Seznam!$A$4:$K$500,4)) -> 2006 | I68: 1 | L68: 1 | M68: 1
A69: 12. | C69: =IF($B69="","",VLOOKUP($B69,Seznam!$A$4:$K$500,2)) ->  | D69: =IF($B69="","",VLOOKUP($B69,Seznam!$A$4:$K$500,3)) ->  | E69: =IF($B69="","",VLOOKUP($B69,Seznam!$A$4:$K$500,4)) ->  | M69: 0
A70: 13. | C70: =IF($B70="","",VLOOKUP($B70,Seznam!$A$4:$K$500,2)) ->  | D70: =IF($B70="","",VLOOKUP($B70,Seznam!$A$4:$K$500,3)) ->  | E70: =IF($B70="","",VLOOKUP($B70,Seznam!$A$4:$K$500,4)) ->  | M70: 0
A71: 14. | C71: =IF($B71="","",VLOOKUP($B71,Seznam!$A$4:$K$500,2)) ->  | D71: =IF($B71="","",VLOOKUP($B71,Seznam!$A$4:$K$500,3)) ->  | E71: =IF($B71="","",VLOOKUP($B71,Seznam!$A$4:$K$500,4)) ->  | M71: 0
A72: 15. | C72: =IF($B72="","",VLOOKUP($B72,Seznam!$A$4:$K$500,2)) ->  | D72: =IF($B72="","",VLOOKUP($B72,Seznam!$A$4:$K$500,3)) ->  | E72: =IF($B72="","",VLOOKUP($B72,Seznam!$A$4:$K$500,4)) ->  | L72: =IF(AND(J72="",F72="",G72="",H72="",I72="",K72),"",COUNTA(F72:K72)) ->  | M72: 0
A73: 16. | C73: =IF($B73="","",VLOOKUP($B73,Seznam!$A$4:$K$500,2)) ->  | D73: =IF($B73="","",VLOOKUP($B73,Seznam!$A$4:$K$500,3)) ->  | E73: =IF($B73="","",VLOOKUP($B73,Seznam!$A$4:$K$500,4)) ->  | L73: =IF(AND(J73="",F73="",G73="",H73="",I73="",K73=""),"",COUNTA(F73:K73)) ->  | M73: 0
A74: 17. | C74: =IF($B74="","",VLOOKUP($B74,Seznam!$A$4:$K$500,2)) ->  | D74: =IF($B74="","",VLOOKUP($B74,Seznam!$A$4:$K$500,3)) ->  | E74: =IF($B74="","",VLOOKUP($B74,Seznam!$A$4:$K$500,4)) ->  | M74: 0
A75: 18. | C75: =IF($B75="","",VLOOKUP($B75,Seznam!$A$4:$K$500,2)) ->  | D75: =IF($B75="","",VLOOKUP($B75,Seznam!$A$4:$K$500,3)) ->  | E75: =IF($B75="","",VLOOKUP($B75,Seznam!$A$4:$K$500,4)) ->  | M75: 0
A76: 19. | C76: =IF($B76="","",VLOOKUP($B76,Seznam!$A$4:$K$500,2)) ->  | D76: =IF($B76="","",VLOOKUP($B76,Seznam!$A$4:$K$500,3)) ->  | E76: =IF($B76="","",VLOOKUP($B76,Seznam!$A$4:$K$500,4)) ->  | M76: 0
A77: 20. | C77: =IF($B77="","",VLOOKUP($B77,Seznam!$A$4:$K$500,2)) ->  | D77: =IF($B77="","",VLOOKUP($B77,Seznam!$A$4:$K$500,3)) ->  | E77: =IF($B77="","",VLOOKUP($B77,Seznam!$A$4:$K$500,4)) ->  | M77: 0
A78: 21. | C78: =IF($B78="","",VLOOKUP($B78,Seznam!$A$4:$K$500,2)) ->  | D78: =IF($B78="","",VLOOKUP($B78,Seznam!$A$4:$K$500,3)) ->  | E78: =IF($B78="","",VLOOKUP($B78,Seznam!$A$4:$K$500,4)) ->  | M78: 0
A79: 22. | C79: =IF($B79="","",VLOOKUP($B79,Seznam!$A$4:$K$500,2)) ->  | D79: =IF($B79="","",VLOOKUP($B79,Seznam!$A$4:$K$500,3)) ->  | E79: =IF($B79="","",VLOOKUP($B79,Seznam!$A$4:$K$500,4)) ->  | M79: 0
A80: 23. | C80: =IF($B80="","",VLOOKUP($B80,Seznam!$A$4:$K$500,2)) ->  | D80: =IF($B80="","",VLOOKUP($B80,Seznam!$A$4:$K$500,3)) ->  | E80: =IF($B80="","",VLOOKUP($B80,Seznam!$A$4:$K$500,4)) ->  | M80: 0
A81: 24. | C81: =IF($B81="","",VLOOKUP($B81,Seznam!$A$4:$K$500,2)) ->  | D81: =IF($B81="","",VLOOKUP($B81,Seznam!$A$4:$K$500,3)) ->  | E81: =IF($B81="","",VLOOKUP($B81,Seznam!$A$4:$K$500,4)) ->  | M81: 0
A82: 25. | C82: =IF($B82="","",VLOOKUP($B82,Seznam!$A$4:$K$500,2)) ->  | D82: =IF($B82="","",VLOOKUP($B82,Seznam!$A$4:$K$500,3)) ->  | E82: =IF($B82="","",VLOOKUP($B82,Seznam!$A$4:$K$500,4)) ->  | M82: 0
A83: 26. | C83: =IF($B83="","",VLOOKUP($B83,Seznam!$A$4:$K$500,2)) ->  | D83: =IF($B83="","",VLOOKUP($B83,Seznam!$A$4:$K$500,3)) ->  | E83: =IF($B83="","",VLOOKUP($B83,Seznam!$A$4:$K$500,4)) ->  | M83: 0
A84: 27. | C84: =IF($B84="","",VLOOKUP($B84,Seznam!$A$4:$K$500,2)) ->  | D84: =IF($B84="","",VLOOKUP($B84,Seznam!$A$4:$K$500,3)) ->  | E84: =IF($B84="","",VLOOKUP($B84,Seznam!$A$4:$K$500,4)) ->  | M84: 0
C85: =IF($B85="","",VLOOKUP($B85,Seznam!$A$4:$K$500,2)) ->  | D85: =IF($B85="","",VLOOKUP($B85,Seznam!$A$4:$K$500,3)) ->  | E85: =IF($B85="","",VLOOKUP($B85,Seznam!$A$4:$K$500,4)) ->  | M85: 0
C86: Nejmladší žáci
A87: poř. | B87: č.h. | C87: jméno | D87: oddíl/klub | E87: nar. | F87: =F6 -> Fryd. | G87: Brušp. | H87: ČT | I87: ČT | J87: Fryd. | K87: 0 | L87: počet turnajů | M87: celkem bodů
A88: 1. | B88: 17 | C88: =IF($B88="","",VLOOKUP($B88,Seznam!$A$4:$K$500,2)) -> Michnová Marika | D88: =IF($B88="","",VLOOKUP($B88,Seznam!$A$4:$K$500,3)) -> SK Frýdlant | E88: =IF($B88="","",VLOOKUP($B88,Seznam!$A$4:$K$500,4)) -> 2008 | F88: 5 | G88: 5 | I88: 5 | L88: =IF(AND(J88="",F88="",G88="",H88="",I88="",K88=""),"",COUNTA(F88:K88)) -> 3 | M88: =IF(B88="",0,SUM(IF(ISERROR(LARGE(F88:K88,1)),0,LARGE(F88:K88,1)),IF(ISERROR(LARGE(F88:K88,2)),0,LARGE(F88:K88,2)),IF(ISERROR(LARGE(F88:K88,3)),0,LARGE(F88:K88,3)),IF(ISERROR(LARGE(F88:K88,4)),0,LARGE(F88:K88,4)))) -> 15
A89: 2. | B89: 134 | C89: =IF($B89="","",VLOOKUP($B89,Seznam!$A$4:$K$500,2)) -> Viňanský Pavel | D89: =IF($B89="","",VLOOKUP($B89,Seznam!$A$4:$K$500,3)) -> Brušperk | E89: =IF($B89="","",VLOOKUP($B89,Seznam!$A$4:$K$500,4)) -> 2008 | F89: 1 | G89: 2 | H89: 5 | I89: 2 | L89: 4 | M89: 10
A90: 3. | B90: 110 | C90: =IF($B90="","",VLOOKUP($B90,Seznam!$A$4:$K$500,2)) -> Fuchsík Šimon | D90: =IF($B90="","",VLOOKUP($B90,Seznam!$A$4:$K$500,3)) -> Frýdlant | E90: =IF($B90="","",VLOOKUP($B90,Seznam!$A$4:$K$500,4)) -> 2008 | F90: 3 | G90: 3 | I90: 3 | L90: 3 | M90: 9
A91: 4. | B91: 30 | C91: =IF($B91="","",VLOOKUP($B91,Seznam!$A$4:$K$500,2)) -> Olejník Oliver | D91: =IF($B91="","",VLOOKUP($B91,Seznam!$A$4:$K$500,3)) -> TTC F-M | E91: =IF($B91="","",VLOOKUP($B91,Seznam!$A$4:$K$500,4)) -> 2011 | F91: 4 | L91: 1 | M91: 4
A92: 5. | B92: 28 | C92: =IF($B92="","",VLOOKUP($B92,Seznam!$A$4:$K$500,2)) -> Domenyová Klára | D92: =IF($B92="","",VLOOKUP($B92,Seznam!$A$4:$K$500,3)) -> Český Těšín | E92: =IF($B92="","",VLOOKUP($B92,Seznam!$A$4:$K$500,4)) -> 2003 | G92: 4 | L92: 1 | M92: 4
A93: 6. | B93: 24 | C93: =IF($B93="","",VLOOKUP($B93,Seznam!$A$4:$K$500,2)) -> Břenek Jiří | D93: =IF($B93="","",VLOOKUP($B93,Seznam!$A$4:$K$500,3)) -> Karviná | E93: =IF($B93="","",VLOOKUP($B93,Seznam!$A$4:$K$500,4)) -> 2009 | H93: 4 | L93: 1 | M93: 4
A94: 7. | B94: 56 | C94: =IF($B94="","",VLOOKUP($B94,Seznam!$A$4:$K$500,2)) -> Stodůlková Tereza | D94: =IF($B94="","",VLOOKUP($B94,Seznam!$A$4:$K$500,3)) -> SK Frýdlant | E94: =IF($B94="","",VLOOKUP($B94,Seznam!$A$4:$K$500,4)) -> 2008 | I94: 4 | L94: 1 | M94: 4
A95: 8. | B95: 41 | C95: =IF($B95="","",VLOOKUP($B95,Seznam!$A$4:$K$500,2)) -> Břenková Kristýna | D95: =IF($B95="","",VLOOKUP($B95,Seznam!$A$4:$K$500,3)) -> Karviná | E95: =IF($B95="","",VLOOKUP($B95,Seznam!$A$4:$K$500,4)) -> 2009 | H95: 3 | L95: 1 | M95: 3
A96: 9. | B96: 25 | C96: =IF($B96="","",VLOOKUP($B96,Seznam!$A$4:$K$500,2)) -> Smetana Jan | D96: =IF($B96="","",VLOOKUP($B96,Seznam!$A$4:$K$500,3)) -> Třinec | E96: =IF($B96="","",VLOOKUP($B96,Seznam!$A$4:$K$500,4)) -> 2008 | H96: 2 | I96: 1 | L96: 2 | M96: 3
A97: 10. | B97: 124 | C97: =IF($B97="","",VLOOKUP($B97,Seznam!$A$4:$K$500,2)) -> Mlčoch Jan | D97: =IF($B97="","",VLOOKUP($B97,Seznam!$A$4:$K$500,3)) -> CDU Ostrava | E97: =IF($B97="","",VLOOKUP($B97,Seznam!$A$4:$K$500,4)) -> 2008 | F97: 2 | L97: 1 | M97: 2
A98: 11. | B98: 35 | C98: =IF($B98="","",VLOOKUP($B98,Seznam!$A$4:$K$500,2)) -> Moravec Václav | D98: =IF($B98="","",VLOOKUP($B98,Seznam!$A$4:$K$500,3)) -> Paskov | E98: =IF($B98="","",VLOOKUP($B98,Seznam!$A$4:$K$500,4)) -> 2008 | G98: 1 | L98: 1 | M98: 1
A99: 12. | B99: 142 | C99: =IF($B99="","",VLOOKUP($B99,Seznam!$A$4:$K$500,2)) -> Kotas Jakub | D99: =IF($B99="","",VLOOKUP($B99,Seznam!$A$4:$K$500,3)) -> Třinec | E99: =IF($B99="","",VLOOKUP($B99,Seznam!$A$4:$K$500,4)) -> 2008 | H99: 1 | L99: 1 | M99: 1
A100: 13. | C100: =IF($B100="","",VLOOKUP($B100,Seznam!$A$4:$K$500,2)) ->  | D100: =IF($B100="","",VLOOKUP($B100,Seznam!$A$4:$K$500,3)) ->  | E100: =IF($B100="","",VLOOKUP($B100,Seznam!$A$4:$K$500,4)) ->  | M100: 0
A101: 14. | C101: =IF($B101="","",VLOOKUP($B101,Seznam!$A$4:$K$500,2)) ->  | D101: =IF($B101="","",VLOOKUP($B101,Seznam!$A$4:$K$500,3)) ->  | E101: =IF($B101="","",VLOOKUP($B101,Seznam!$A$4:$K$500,4)) ->  | M101: 0
A102: 15. | C102: =IF($B102="","",VLOOKUP($B102,Seznam!$A$4:$K$500,2)) ->  | D102: =IF($B102="","",VLOOKUP($B102,Seznam!$A$4:$K$500,3)) ->  | E102: =IF($B102="","",VLOOKUP($B102,Seznam!$A$4:$K$500,4)) ->  | M102: 0
A103: 16. | C103: =IF($B103="","",VLOOKUP($B103,Seznam!$A$4:$K$500,2)) ->  | D103: =IF($B103="","",VLOOKUP($B103,Seznam!$A$4:$K$500,3)) ->  | E103: =IF($B103="","",VLOOKUP($B103,Seznam!$A$4:$K$500,4)) ->  | M103: 0
A104: 17. | C104: =IF($B104="","",VLOOKUP($B104,Seznam!$A$4:$K$500,2)) ->  | D104: =IF($B104="","",VLOOKUP($B104,Seznam!$A$4:$K$500,3)) ->  | E104: =IF($B104="","",VLOOKUP($B104,Seznam!$A$4:$K$500,4)) ->  | M104: 0
A105: 18. | C105: =IF($B105="","",VLOOKUP($B105,Seznam!$A$4:$K$500,2)) ->  | D105: =IF($B105="","",VLOOKUP($B105,Seznam!$A$4:$K$500,3)) ->  | E105: =IF($B105="","",VLOOKUP($B105,Seznam!$A$4:$K$500,4)) ->  | M105: 0
A106: 19. | C106: =IF($B106="","",VLOOKUP($B106,Seznam!$A$4:$K$500,2)) ->  | D106: =IF($B106="","",VLOOKUP($B106,Seznam!$A$4:$K$500,3)) ->  | E106: =IF($B106="","",VLOOKUP($B106,Seznam!$A$4:$K$500,4)) ->  | M106: 0
A107: 20. | C107: =IF($B107="","",VLOOKUP($B107,Seznam!$A$4:$K$500,2)) ->  | D107: =IF($B107="","",VLOOKUP($B107,Seznam!$A$4:$K$500,3)) ->  | E107: =IF($B107="","",VLOOKUP($B107,Seznam!$A$4:$K$500,4)) ->  | M107: 0
A108: 21. | C108: =IF($B108="","",VLOOKUP($B108,Seznam!$A$4:$K$500,2)) ->  | D108: =IF($B108="","",VLOOKUP($B108,Seznam!$A$4:$K$500,3)) ->  | E108: =IF($B108="","",VLOOKUP($B108,Seznam!$A$4:$K$500,4)) ->  | M108: 0
A109: 22. | C109: =IF($B109="","",VLOOKUP($B109,Seznam!$A$4:$K$500,2)) ->  | D109: =IF($B109="","",VLOOKUP($B109,Seznam!$A$4:$K$500,3)) ->  | E109: =IF($B109="","",VLOOKUP($B109,Seznam!$A$4:$K$500,4)) ->  | M109: 0
A110: 23. | C110: =IF($B110="","",VLOOKUP($B110,Seznam!$A$4:$K$500,2)) ->  | D110: =IF($B110="","",VLOOKUP($B110,Seznam!$A$4:$K$500,3)) ->  | E110: =IF($B110="","",VLOOKUP($B110,Seznam!$A$4:$K$500,4)) ->  | M110: 0
A111: 24. | C111: =IF($B111="","",VLOOKUP($B111,Seznam!$A$4:$K$500,2)) ->  | D111: =IF($B111="","",VLOOKUP($B111,Seznam!$A$4:$K$500,3)) ->  | E111: =IF($B111="","",VLOOKUP($B111,Seznam!$A$4:$K$500,4)) ->  | M111: 0
A112: 25. | C112: =IF($B112="","",VLOOKUP($B112,Seznam!$A$4:$K$500,2)) ->  | D112: =IF($B112="","",VLOOKUP($B112,Seznam!$A$4:$K$500,3)) ->  | E112: =IF($B112="","",VLOOKUP($B112,Seznam!$A$4:$K$500,4)) ->  | M112: 0
A113: 26. | C113: =IF($B113="","",VLOOKUP($B113,Seznam!$A$4:$K$500,2)) ->  | D113: =IF($B113="","",VLOOKUP($B113,Seznam!$A$4:$K$500,3)) ->  | E113: =IF($B113="","",VLOOKUP($B113,Seznam!$A$4:$K$500,4)) ->  | M113: 0
A114: 27. | C114: =IF($B114="","",VLOOKUP($B114,Seznam!$A$4:$K$500,2)) ->  | D114: =IF($B114="","",VLOOKUP($B114,Seznam!$A$4:$K$500,3)) ->  | E114: =IF($B114="","",VLOOKUP($B114,Seznam!$A$4:$K$500,4)) ->  | M114: 0
A115: 28. | C115: =IF($B115="","",VLOOKUP($B115,Seznam!$A$4:$K$500,2)) ->  | D115: =IF($B115="","",VLOOKUP($B115,Seznam!$A$4:$K$500,3)) ->  | E115: =IF($B115="","",VLOOKUP($B115,Seznam!$A$4:$K$500,4)) ->  | M115: 0
A116: 29. | C116: =IF($B116="","",VLOOKUP($B116,Seznam!$A$4:$K$500,2)) ->  | D116: =IF($B116="","",VLOOKUP($B116,Seznam!$A$4:$K$500,3)) ->  | E116: =IF($B116="","",VLOOKUP($B116,Seznam!$A$4:$K$500,4)) ->  | M116: 0
A117: 30. | C117: =IF($B117="","",VLOOKUP($B117,Seznam!$A$4:$K$500,2)) ->  | D117: =IF($B117="","",VLOOKUP($B117,Seznam!$A$4:$K$500,3)) ->  | E117: =IF($B117="","",VLOOKUP($B117,Seznam!$A$4:$K$500,4)) ->  | M117: 0
A118: 31. | C118: =IF($B118="","",VLOOKUP($B118,Seznam!$A$4:$K$500,2)) ->  | D118: =IF($B118="","",VLOOKUP($B118,Seznam!$A$4:$K$500,3)) ->  | E118: =IF($B118="","",VLOOKUP($B118,Seznam!$A$4:$K$500,4)) ->  | M118: 0
A119: 32. | C119: =IF($B119="","",VLOOKUP($B119,Seznam!$A$4:$K$500,2)) ->  | D119: =IF($B119="","",VLOOKUP($B119,Seznam!$A$4:$K$500,3)) ->  | E119: =IF($B119="","",VLOOKUP($B119,Seznam!$A$4:$K$500,4)) ->  | M119: 0
A120: 33. | C120: =IF($B120="","",VLOOKUP($B120,Seznam!$A$4:$K$500,2)) ->  | D120: =IF($B120="","",VLOOKUP($B120,Seznam!$A$4:$K$500,3)) ->  | E120: =IF($B120="","",VLOOKUP($B120,Seznam!$A$4:$K$500,4)) ->  | M120: 0
